Workbook

Sheet Grunddaten (hidden)
A1: Grundbetrag | B1: 80
A2: Familienermäßigung | B2: 0 | C2: -0.2 | D2: -0.3 | E2: -0.4
B3: 5 Std. | C3: 6 Std. | D3: 8 Std. | E3: 9 Std. | F3: 10 Std. | G3: Abendgruppe
A4: Zuschläge | B4: 0.2 | C4: 0.3 | D4: 0.4 | E4: 0.55 | F4: 0.7 | G4: 0.4
A7: Betreuung
B8: 1 | C8: 2 | D8: 3 | E8: 4
A9: RG | B9: =$B$1*(1+B2) -> 80 | C9: =$B$1*(1+C2) -> 64 | D9: =$B$1*(1+D2) -> 56 | E9: =$B$1*(1+E2) -> 48
A10: HG | B10: =B9*$B$26 -> 56 | C10: =C9*$B$26 -> 44.8 | D10: 39.2 | E10: 33.6
A11: SG | B11: =B9 -> 80 | C11: =C9 -> 64 | D11: =D9 -> 56 | E11: =E9 -> 48
A12: GT8 | B12: =$B$1*(1+B$2)*(1+$D$4) -> 112 | C12: =$B$1*(1+C2)*(1+$D$4) -> 89.6 | D12: =$B$1*(1+D2)*(1+$D$4) -> 78.4 | E12: =$B$1*(1+E2)*(1+$D$4) -> 67.2
A13: GT9 | B13: =$B$1*(1+B$2)*(1+$E$4) -> 124 | C13: =$B$1*(1+C$2)*(1+$E$4) -> 99.2 | D13: =$B$1*(1+D$2)*(1+$E$4) -> 86.8 | E13: =$B$1*(1+E$2)*(1+$E$4) -> 74.4
A14: GT10 | B14: =$B$1*(1+B$2)*(1+$F$4) -> 136 | C14: =$B$1*(1+C$2)*(1+$F$4) -> 108.8 | D14: =$B$1*(1+D$2)*(1+$F$4) -> 95.2 | E14: =$B$1*(1+E$2)*(1+$F$4) -> 81.6
A15: SH5 | B15: =$B$1*(1+B$2)*(1+$B$4) -> 96 | C15: =$B$1*(1+C$2)*(1+$B$4) -> 76.8 | D15: =$B$1*(1+D$2)*(1+$B$4) -> 67.2 | E15: =$B$1*(1+E$2)*(1+$B$4) -> 57.6
A16: SH6 | B16: =$B$1*(1+B$2)*(1+$C$4) -> 104 | C16: =$B$1*(1+C$2)*(1+$C$4) -> 83.2 | D16: =$B$1*(1+D$2)*(1+$C$4) -> 72.8 | E16: =$B$1*(1+E$2)*(1+$C$4) -> 62.4
A17: SH8 | B17: =$B$1*(1+B$2)*(1+$D$4) -> 112 | C17: =$B$1*(1+C$2)*(1+$D$4) -> 89.6 | D17: =$B$1*(1+D$2)*(1+$D$4) -> 78.4 | E17: =$B$1*(1+E$2)*(1+$D$4) -> 67.2
A18: SH9 | B18: =$B$1*(1+B$2)*(1+$E$4) -> 124 | C18: =$B$1*(1+C$2)*(1+$E$4) -> 99.2 | D18: =$B$1*(1+D$2)*(1+$E$4) -> 86.8 | E18: =$B$1*(1+E$2)*(1+$E$4) -> 74.4
A19: SH10 | B19: =$B$1*(1+B$2)*(1+$F$4) -> 136 | C19: =$B$1*(1+C$2)*(1+$F$4) -> 108.8 | D19: =$B$1*(1+D$2)*(1+$F$4) -> 95.2 | E19: =$B$1*(1+E$2)*(1+$F$4) -> 81.6
A20: VGS | B20: 29 | C20: 23 | D20: 15 | E20: 10
A21: AG | B21: =$B$1*(1+B$2)*($G$4) -> 32 | C21: =$B$1*(1+C$2)*($G$4) -> 25.6 | D21: =$B$1*(1+D$2)*($G$4) -> 22.4 | E21: =$B$1*(1+E$2)*($G$4) -> 19.2
A25: SG | B25: 0.75
A26: HG | B26: 0.7
A27: HG + U3 | B27: =B26*B29 -> 1.05
A28: VÖ | B28: 1.15
A29: U3 | B29: 1.5
A30: NM | B30: 0.5
A31: VÖ + U3 | B31: =B28*B29 -> 1.725
A32: U3 + NM | B32: =B29*B30 -> 0.75
A33: Einrtitt 15. | B33: 0.5
A34: BVGS | B34: 0.25
A35: Zusatzstunde | B35: 5
A37: Verpflegung | B37: 5 Tage | C37: 4 Tage | D37: 3 Tage | E37: 2 Tage | F37: 1 Tag
A38: Essen | B38: 83.8 | C38: 67 | D38: 50.3 | E38: 33.5 | F38: 16.8
A39: Bonuskarte | B39: 0 | C39: 0 | D39: 0 | E39: 0 | F39: 0
A40: Vesper | B40: 10
A53: Änderungen:
A54: in Version 4 | B54: Anmerkungen linksbündig
B55: im Blatt "Abrechnung" Einbeziehung VGS bei Abrechnungssumme
A57: Version 4.1. | B57: Zelle Bescheid A15 gesperrt. Wert wird nun zwnagskäufig aus Tabellenblatt "September" bezogen
A58: Version 4.1.1 | B58: U3 Berechnung in Onlinegebührenberechnung; bei Aufnahme zum 15. U3 Berechnung auf 1. des Monats gesetzt
A59: Version 4.1.2 | B59: Berücksichtigung Geschwister bei An- oder Abmeldung (15. bzw. 20) auf Monatsersten festgesetzt
A60: Version 4.1.21 | B60: Bescheid "briefkopftauglich"
A61: Version 4.2.1 | B61: Einfügen Spielgruppe "SG"
A62: Version 5 | B62: Einfügen Halbtagesgruppe "HG"; Änderung SEPA; Betreuungsende U3
A63: Version 5.1. | B63: Betreuungsende u3 rückgängig; Bescheid Betreuungsform um u3 ergänzt

Sheet Bescheid (hidden)
A1: Stadt Göppingen
A2: Referat Kinder und Jugend
A3: Pfarrstraße 11
A4: 73033 Göppingen
A7: Stadtverwaltung * Postfach 1149 * 73033 Göppingen
A8: Herrn / Frau
A9: Vorname / Name
A10: Straße
A11: PLZ Wohnort | E11: =TODAY() -> 2022-01-31
B14: vorläufiger Gebührenbescheid für die Zeit von
A15: =DATE(YEAR(September!B4),MONTH(September!B4),DAY(1)) -> 2021-09-01 | B15: bis | C15: =DATE(YEAR(August!B4),MONTH(August!B4),DAY(31)) -> 2022-08-31
A17: Für die Betreuung und Verpflegung des Kindes
A18: ??? | C18: geboren am | D18: =August!B6 -> 00:00:00
A19: in der städtischen Kindertagesstätte | C19: (Name der Kita)
A20: werden nach der Satzung über die Erhebung von Gebühren für die Benutzung von Kindertageseinrichtungen der Stadt Göppingen in der Fassung vom 09.07.2015, die ab 01.04.2015 gültig ist, folgende Gebühren festgesetzt.
A22: fällig zum | B22: gewählte Betreuungs-form | C22: Betreuung | D22: Verpflegung | E22: Gesamtbetrag
A23: =A15 -> 2021-09-01 | B23: =IF(September!C31="","",IF(September!C$33="",September!C$31,CONCATENATE(September!C$31," + ",September!C$33))) ->  | C23: =September!B43 -> 0 | D23: =IF(C23=0,0,September!B$44) -> 0 | E23: =D23+C23 -> 0
A24: =DATE(YEAR(A23),MONTH(A23)+1,DAY(1)) -> 2021-10-01 | B24: =IF(C24=0,"",IF(Oktober!C31=0,"",IF(Oktober!C$33="",Oktober!C$31,CONCATENATE(Oktober!C$31," + ",Oktober!C$33)))) ->  | C24: =Oktober!B$43 -> 0 | D24: =IF(C24=0,0,Oktober!B$44) -> 0 | E24: =D24+C24 -> 0
A25: =DATE(YEAR(A24),MONTH(A24)+1,DAY(1)) -> 2021-11-01 | B25: =IF(C25=0,"",IF(November!C31=0,"",IF(November!C$33="",November!C$31,CONCATENATE(November!C$31," + ",November!C$33)))) ->  | C25: =November!B$43 -> 0 | D25: =IF(C25=0,0,November!B$44) -> 0 | E25: 0
A26: 2021-12-01 | B26: =IF(C26=0,"",IF(Dezember!C31=0,"",IF(Dezember!C$33="",Dezember!C$31,CONCATENATE(Dezember!C$31," + ",Dezember!C$33)))) ->  | C26: =Dezember!B$43 -> 0 | D26: =IF(C26=0,0,Dezember!B$44) -> 0 | E26: 0
A27: 2022-01-01 | B27: =IF(C27=0,"",IF(Januar!C31=0,"",IF(Januar!C$33="",Januar!C$31,CONCATENATE(Januar!C$31," + ",Januar!C$33)))) ->  | C27: =Januar!B$43 -> 0 | D27: =IF(C27=0,0,Januar!B$44) -> 0 | E27: 0
A28: 2022-02-01 | B28: =IF(C28=0,"",IF(Februar!C31=0,"",IF(Februar!C$33="",Februar!C$31,CONCATENATE(Februar!C$31," + ",Februar!C$33)))) ->  | C28: =Februar!B$43 -> 0 | D28: =IF(C28=0,0,Februar!B$44) -> 0 | E28: 0
A29: 2022-03-01 | B29: =IF(C29=0,"",IF(März!C31=0,"",IF(März!C$33="",März!C$31,CONCATENATE(März!C$31," + ",März!C$33)))) ->  | C29: =März!B$43 -> 0 | D29: =IF(C29=0,0,März!B$44) -> 0 | E29: 0
A30: 2022-04-01 | B30: =IF(C30=0,"",IF(April!C31=0,"",IF(April!C$33="",April!C$31,CONCATENATE(April!C$31," + ",April!C$33)))) ->  | C30: =April!B$43 -> 0 | D30: =IF(C30=0,0,April!B$44) -> 0 | E30: 0
A31: 2022-05-01 | B31: =IF(C31=0,"",IF(Mai!C31=0,"",IF(Mai!C$33="",Mai!C$31,CONCATENATE(Mai!C$31," + ",Mai!C$33)))) ->  | C31: =Mai!B$43 -> 0 | D31: =IF(C31=0,0,Mai!B$44) -> 0 | E31: 0
A32: 2022-06-01 | B32: =IF(C32=0,"",IF(Juni!C31=0,"",IF(Juni!C$33="",Juni!C$31,CONCATENATE(Juni!C$31," + ",Juni!C$33)))) ->  | C32: =Juni!B$43 -> 0 | D32: =IF(C32=0,0,Juni!B$44) -> 0 | E32: 0
A33: 2022-07-01 | B33: =IF(C33=0,"",IF(Juli!C31=0,"",IF(Juli!C$33="",Juli!C$31,CONCATENATE(Juli!C$31," + ",Juli!C$33)))) ->  | C33: =Juli!B$43 -> 0 | D33: =IF(C33=0,0,Juli!B$44) -> 0 | E33: 0
A34: 2022-08-01 | B34: =IF(C34=0,"",IF(August!C31=0,"",IF(August!C$33="",August!C$31,CONCATENATE(August!C$31," + ",August!C$33)))) ->  | C34: =August!B$43 -> 0 | D34: =IF(C34=0,0,August!B$44) -> 0 | E34: 0
A35: Gesamtbetrag Kinder-gartenjahr 2017/18 | C35: =SUM(C23:C34) -> 0 | D35: =SUM(D23:D34) -> 0 | E35: =SUM(E23:E34) -> 0
A37: Bitte überweisen Sie den Monatsbetrag jeweils zum 1. des Monats unter der PK-Nummer
A38: Eingabe der PK-Nummer | B38: auf folgende Bankverbindung BIC: GOPSDE6GXXX;
A39: IBAN: DE26610500000000000110. Sofern Sie uns ein SEPA-Lastschriftmandat erteilt
A40: haben, werden wir die Beträge zum Fälligkeitstag einziehen.
A42: Rechtsbehelfsbelehrung:
A43: Gegen diesen Bescheid können Sie binnen eines Monats nach seiner Bekanntgabe Widerspruch einlegen. Der Widerspruch ist schriftlich oder zur Niederschrift bei der Stadt Göppingen - Referat Kinder und Jugend - Pfarrstraße 11 in 73033 Göppingen oder einer anderen Dienststelle der Stadt Göppingen einzulegen.
A45: Mit freundlichen Grüßen
A47: Stadtverwaltung Göppingen
A48: Referat Kinder und Jugend
A50: Rückfragen zur Betreuung: | C50: in der jeweiligen Kita
A51: Rückfragen zur Gebührenveranlagung: | C51: Frau Ayerle, Ref. Kinder + Jugend, Tel.: 07161 650-442
A52: Rückfragen zum Zahlungseingang: | C52: Herr Keller, Stadtkasse, Tel.: 07161 650-533
A56: Stadt Göppingen
A57: Referat Kinder und Jugend
A58: Pfarrstraße 11
A59: 73033 Göppingen
A65: Stadtkasse Göppingen
A66: Hauptstraße 1
A67: 73033 Göppingen
A71: SEPA-Lastschriftmandat (wiederkehrende Zahlungen)
A72: Gläubiger-Identifikationsnummer: DE 37ZZZ00000229678
A74: Mandatsreferenz: | B74: =A38 -> Eingabe der PK-Nummer
A76: Ich ermächtige (Wir ermächtigen) die Stadt Göppingen Zahlungen von meinem (unserem) Konto mittels SEPA-Lastschrift einzuziehen. Zugleich weise ich mein (weisen wir unser) Kreditinstitut an, die von der Stadt Göppingen auf mein (unser) Konto gezogene Lastschrift einzulösen.
A77: Hinweis: Ich kann (Wir können) innerhalb von acht Wochen, beginnend mit dem Belastungsdatum, die Erstattung des belasteten Betrages verlangen. Es gelten dabei die mit meinem (unserem) Kreditinstitut vereinbarten Bedingungen.
A79: Name, Vorname
A81: Straße + Hausnummer
A83: PLZ + Ort
A85: Kreditinstitut (Name)
A87: BIC | B87: __ __ __ __ __ __ __ __ __ __ __
A89: IBAN | B89: DE __ __ | __ __ __ __ | __ __ __ __ | __ __ __ __ | __ __ __ __ | __ __
A92: Göppingen, den | B92: =TODAY() -> 2022-01-31
C95: Unterschrift(en) Kontoinhaber (Vor- und Zuname)
A99: interne Vermerke und Informationen:
A101: Name des Kindes: | B101: =A18 -> ???
A102: Geburtsdatum Kind: | B102: =D18 -> 00:00:00
A103: Kindertagesstätte: | B103: =C19 -> (Name der Kita)
A105: Erziehungsberechtigte(r): | B105: =A9 -> Vorname / Name
B106: =A10 -> Straße
B107: =A11 -> PLZ Wohnort

Sheet Online_Gebührenberechnung (hidden)
K1: =September!B4 -> 2021-09-01 | O1: =SUM(O8:O35) -> 0 | S1: =SUM(S8:S35) -> 0 | T1: =SUM(T8:T35) -> 0 | U1: =SUM(U8:U35) -> 0
A3: Gruppe 1
A7: Lfd. Nummer | B7: Neuaufnahme / Abmeldung | C7: Namen | D7: Geburts-datum | E7: Kind / Fam. | F7: Betreuungsform | G7: Differenz Monate | H7: Grundbetrag Monat | I7: VÖ | J7: U3 | K7: Nachmittag | L7: Eintritt /Austritt 15. | M7: Basisbetrag | N7: Zusatz-Einzelstd. | O7: Betreuung insgesamt | P7: Bonuskarte (ganzer Monat) | Q7: Anzahl Essen pro Woche | R7: Vesper | S7: Verpflegung insgesamt | T7: Monatsgebühr | U7: Erstattung 1 €-Essen | V7: Anmerkungen
A8: 1 | C8: =DATE(YEAR(September!B$4),MONTH(September!B$4),DAY(1)) -> 2021-09-01 | D8: =September!B$6 -> 00:00:00 | E8: =IF(September!C$31="","",IF(COUNTIF(September!C$9:C$12,"Ja")=4,4,COUNTIF(September!C$9:C$12,"Ja")+1)) ->  | F8: =IF(September!C$31="","",IF(OR(September!C$31="VÖ",September!C$31="NM"),"RG",September!C$31)) ->  | G8: =DATEDIF(D8,C8,"m") -> 1460 | H8: =IF(E8="",0,INDEX(Grunddaten!$B$9:$E$19,MATCH(F8,Grunddaten!$A$9:$A$19,0),MATCH(E8,Grunddaten!$B$8:$E$8,0))) -> 0 | I8: =IF(September!C$31="VÖ","x","") ->  | J8: =IF(September!B$7="JA","x","") ->  | K8: =IF(September!C$31="NM","x","") ->  | M8: =ROUND(IF(F8="SG",H8*Grunddaten!$B$25,(IF(L8="X",(IF(AND(J8="X",K8="X"),H8*Grunddaten!$B$32,IF(AND(I8="X",J8="X"),H8*Grunddaten!$B$31,IF(I8="X",H8*Grunddaten!$B$28,IF(J8="X",H8*Grunddaten!$B$29,IF(K8="X",H8*Grunddaten!$B$30,H8)))))*Grunddaten!$B$33),IF(AND(J8="X",K8="X"),H8*Grunddaten!$B$32,IF(AND(I8="X",J8="X"),H8*Grunddaten!$B$31,IF(I8="X",H8*Grunddaten!$B$28,IF(J8="X",H8*Grunddaten!$B$29,IF(K8="X",H8*Grunddaten!$B$30,H8)))))))),2) -> 0 | O8: =M8+(N8*Grunddaten!B$35) -> 0 | P8: =IF(September!B$40="","",September!B$40) ->  | Q8: =IF(September!B$37="","",September!B$37) ->  | R8: =IF(September!B$38="","",September!B$38) ->  | S8: =IF(P8="",IF(Q8=5,Grunddaten!$B$38,IF(Q8=4,Grunddaten!$C$38,IF(Q8=3,Grunddaten!$D$38,IF(Q8=2,Grunddaten!$E$38,IF(Q8=1,Grunddaten!$F$38,IF(Q8="",0)))))),(IF(Q8=5,Grunddaten!$B$39,IF(Q8=4,Grunddaten!$C$39,IF(Q8=3,Grunddaten!$D$39,IF(Q8=2,Grunddaten!$E$39,IF(Q8=1,Grunddaten!$F$39,IF(Q8="",0))))))))+IF(R8="",0,Grunddaten!$B$40) -> 0 | T8: =S8+O8 -> 0 | U8: =IF(P8="x",IF(Q8=5,Grunddaten!$B$38-Grunddaten!$B$39,IF(Q8=4,Grunddaten!$C$38-Grunddaten!$C$39,IF(Q8=3,Grunddaten!$D$38-Grunddaten!$D$39,IF(Q8=2,Grunddaten!$E$38-Grunddaten!$E$39,IF(Q8=1,Grunddaten!$F$38-Grunddaten!$F$39))))),"") -> 
A9: 2 | C9: =DATE(YEAR(Oktober!B$4),MONTH(Oktober!B$4),DAY(1)) -> 2021-10-01 | D9: =Oktober!B$6 -> 00:00:00 | E9: =IF(Oktober!C$31="","",IF(COUNTIF(Oktober!C$9:C$12,"Ja")=4,4,COUNTIF(Oktober!C$9:C$12,"Ja")+1)) ->  | F9: =IF(Oktober!C$31="","",IF(OR(Oktober!C$31="VÖ",Oktober!C$31="NM"),"RG",Oktober!C$31)) ->  | G9: =DATEDIF(D9,C9,"m") -> 1461 | H9: =IF(E9="",0,INDEX(Grunddaten!$B$9:$E$19,MATCH(F9,Grunddaten!$A$9:$A$19,0),MATCH(E9,Grunddaten!$B$8:$E$8,0))) -> 0 | I9: =IF(Oktober!C31="VÖ","x","") ->  | J9: =IF(Oktober!B$7="JA","x","") ->  | K9: =IF(Oktober!C$31="NM","x","") ->  | M9: =ROUND(IF(F9="SG",H9*Grunddaten!$B$25,(IF(L9="X",(IF(AND(J9="X",K9="X"),H9*Grunddaten!$B$32,IF(AND(I9="X",J9="X"),H9*Grunddaten!$B$31,IF(I9="X",H9*Grunddaten!$B$28,IF(J9="X",H9*Grunddaten!$B$29,IF(K9="X",H9*Grunddaten!$B$30,H9)))))*Grunddaten!$B$33),IF(AND(J9="X",K9="X"),H9*Grunddaten!$B$32,IF(AND(I9="X",J9="X"),H9*Grunddaten!$B$31,IF(I9="X",H9*Grunddaten!$B$28,IF(J9="X",H9*Grunddaten!$B$29,IF(K9="X",H9*Grunddaten!$B$30,H9)))))))),2) -> 0 | O9: =M9+(N9*Grunddaten!B$35) -> 0 | P9: =IF(Oktober!B$40="","",Oktober!B$40) ->  | Q9: =IF(Oktober!B$37="","",Oktober!B$37) -> 0 | R9: =IF(Oktober!B$38="","",Oktober!B$38) ->  | S9: =IF(P9="",IF(Q9=5,Grunddaten!$B$38,IF(Q9=4,Grunddaten!$C$38,IF(Q9=3,Grunddaten!$D$38,IF(Q9=2,Grunddaten!$E$38,IF(Q9=1,Grunddaten!$F$38,IF(Q9="",0)))))),(IF(Q9=5,Grunddaten!$B$39,IF(Q9=4,Grunddaten!$C$39,IF(Q9=3,Grunddaten!$D$39,IF(Q9=2,Grunddaten!$E$39,IF(Q9=1,Grunddaten!$F$39,IF(Q9="",0))))))))+IF(R9="",0,Grunddaten!$B$40) -> 0 | T9: =S9+O9 -> 0 | U9: =IF(P9="x",IF(Q9=5,Grunddaten!$B$38-Grunddaten!$B$39,IF(Q9=4,Grunddaten!$C$38-Grunddaten!$C$39,IF(Q9=3,Grunddaten!$D$38-Grunddaten!$D$39,IF(Q9=2,Grunddaten!$E$38-Grunddaten!$E$39,IF(Q9=1,Grunddaten!$F$38-Grunddaten!$F$39))))),"") -> 
A10: 3 | C10: =DATE(YEAR(November!B$4),MONTH(November!B$4),DAY(1)) -> 2021-11-01 | D10: =November!B$6 -> 00:00:00 | E10: =IF(November!C$31="","",IF(COUNTIF(November!C$9:C$12,"Ja")=4,4,COUNTIF(November!C$9:C$12,"Ja")+1)) ->  | F10: =IF(November!C$31="","",IF(OR(November!C$31="VÖ",November!C$31="NM"),"RG",November!C$31)) ->  | G10: 1462 | H10: =IF(E10="",0,INDEX(Grunddaten!$B$9:$E$19,MATCH(F10,Grunddaten!$A$9:$A$19,0),MATCH(E10,Grunddaten!$B$8:$E$8,0))) -> 0 | I10: =IF(November!C31="VÖ","x","") ->  | J10: =IF(November!B$7="JA","x","") ->  | K10: =IF(November!C$31="NM","x","") ->  | M10: =ROUND(IF(F10="SG",H10*Grunddaten!$B$25,(IF(L10="X",(IF(AND(J10="X",K10="X"),H10*Grunddaten!$B$32,IF(AND(I10="X",J10="X"),H10*Grunddaten!$B$31,IF(I10="X",H10*Grunddaten!$B$28,IF(J10="X",H10*Grunddaten!$B$29,IF(K10="X",H10*Grunddaten!$B$30,H10)))))*Grunddaten!$B$33),IF(AND(J10="X",K10="X"),H10*Grunddaten!$B$32,IF(AND(I10="X",J10="X"),H10*Grunddaten!$B$31,IF(I10="X",H10*Grunddaten!$B$28,IF(J10="X",H10*Grunddaten!$B$29,IF(K10="X",H10*Grunddaten!$B$30,H10)))))))),2) -> 0 | O10: =M10+(N10*Grunddaten!B$35) -> 0 | P10: =IF(November!B$40="","",November!B$40) ->  | Q10: =IF(November!B$37="","",November!B$37) -> 0 | R10: =IF(November!B$38="","",November!B$38) ->  | S10: =IF(P10="",IF(Q10=5,Grunddaten!$B$38,IF(Q10=4,Grunddaten!$C$38,IF(Q10=3,Grunddaten!$D$38,IF(Q10=2,Grunddaten!$E$38,IF(Q10=1,Grunddaten!$F$38,IF(Q10="",0)))))),(IF(Q10=5,Grunddaten!$B$39,IF(Q10=4,Grunddaten!$C$39,IF(Q10=3,Grunddaten!$D$39,IF(Q10=2,Grunddaten!$E$39,IF(Q10=1,Grunddaten!$F$39,IF(Q10="",0))))))))+IF(R10="",0,Grunddaten!$B$40) -> 0 | T10: 0 | U10: =IF(P10="x",IF(Q10=5,Grunddaten!$B$38-Grunddaten!$B$39,IF(Q10=4,Grunddaten!$C$38-Grunddaten!$C$39,IF(Q10=3,Grunddaten!$D$38-Grunddaten!$D$39,IF(Q10=2,Grunddaten!$E$38-Grunddaten!$E$39,IF(Q10=1,Grunddaten!$F$38-Grunddaten!$F$39))))),"") -> 
A11: 4 | C11: =DATE(YEAR(Dezember!B$4),MONTH(Dezember!B$4),DAY(1)) -> 2021-12-01 | D11: =Dezember!B$6 -> 00:00:00 | E11: =IF(Dezember!C$31="","",IF(COUNTIF(Dezember!C$9:C$12,"Ja")=4,4,COUNTIF(Dezember!C$9:C$12,"Ja")+1)) ->  | F11: =IF(Dezember!C$31="","",IF(OR(Dezember!C$31="VÖ",Dezember!C$31="NM"),"RG",Dezember!C$31)) ->  | G11: 1463 | H11: =IF(E11="",0,INDEX(Grunddaten!$B$9:$E$19,MATCH(F11,Grunddaten!$A$9:$A$19,0),MATCH(E11,Grunddaten!$B$8:$E$8,0))) -> 0 | I11: =IF(Dezember!C31="VÖ","x","") ->  | J11: =IF(Dezember!B$7="JA","x","") ->  | K11: =IF(Dezember!C$31="NM","x","") ->  | M11: =ROUND(IF(F11="SG",H11*Grunddaten!$B$25,(IF(L11="X",(IF(AND(J11="X",K11="X"),H11*Grunddaten!$B$32,IF(AND(I11="X",J11="X"),H11*Grunddaten!$B$31,IF(I11="X",H11*Grunddaten!$B$28,IF(J11="X",H11*Grunddaten!$B$29,IF(K11="X",H11*Grunddaten!$B$30,H11)))))*Grunddaten!$B$33),IF(AND(J11="X",K11="X"),H11*Grunddaten!$B$32,IF(AND(I11="X",J11="X"),H11*Grunddaten!$B$31,IF(I11="X",H11*Grunddaten!$B$28,IF(J11="X",H11*Grunddaten!$B$29,IF(K11="X",H11*Grunddaten!$B$30,H11)))))))),2) -> 0 | O11: =M11+(N11*Grunddaten!B$35) -> 0 | P11: =IF(Dezember!B$40="","",Dezember!B$40) ->  | Q11: =IF(Dezember!B$37="","",Dezember!B$37) -> 0 | R11: =IF(Dezember!B$38="","",Dezember!B$38) ->  | S11: =IF(P11="",IF(Q11=5,Grunddaten!$B$38,IF(Q11=4,Grunddaten!$C$38,IF(Q11=3,Grunddaten!$D$38,IF(Q11=2,Grunddaten!$E$38,IF(Q11=1,Grunddaten!$F$38,IF(Q11="",0)))))),(IF(Q11=5,Grunddaten!$B$39,IF(Q11=4,Grunddaten!$C$39,IF(Q11=3,Grunddaten!$D$39,IF(Q11=2,Grunddaten!$E$39,IF(Q11=1,Grunddaten!$F$39,IF(Q11="",0))))))))+IF(R11="",0,Grunddaten!$B$40) -> 0 | T11: 0 | U11: =IF(P11="x",IF(Q11=5,Grunddaten!$B$38-Grunddaten!$B$39,IF(Q11=4,Grunddaten!$C$38-Grunddaten!$C$39,IF(Q11=3,Grunddaten!$D$38-Grunddaten!$D$39,IF(Q11=2,Grunddaten!$E$38-Grunddaten!$E$39,IF(Q11=1,Grunddaten!$F$38-Grunddaten!$F$39))))),"") -> 
A12: 5 | C12: =DATE(YEAR(Januar!B$4),MONTH(Januar!B$4),DAY(1)) -> 2022-01-01 | D12: =Januar!B$6 -> 00:00:00 | E12: =IF(Januar!C$31="","",IF(COUNTIF(Januar!C$9:C$12,"Ja")=4,4,COUNTIF(Januar!C$9:C$12,"Ja")+1)) ->  | F12: =IF(Januar!C$31="","",IF(OR(Januar!C$31="VÖ",Januar!C$31="NM"),"RG",Januar!C$31)) ->  | G12: 1464 | H12: =IF(E12="",0,INDEX(Grunddaten!$B$9:$E$19,MATCH(F12,Grunddaten!$A$9:$A$19,0),MATCH(E12,Grunddaten!$B$8:$E$8,0))) -> 0 | I12: =IF(Januar!C31="VÖ","x","") ->  | J12: =IF(Januar!B$7="JA","x","") ->  | K12: =IF(Januar!C$31="NM","x","") ->  | M12: =ROUND(IF(F12="SG",H12*Grunddaten!$B$25,(IF(L12="X",(IF(AND(J12="X",K12="X"),H12*Grunddaten!$B$32,IF(AND(I12="X",J12="X"),H12*Grunddaten!$B$31,IF(I12="X",H12*Grunddaten!$B$28,IF(J12="X",H12*Grunddaten!$B$29,IF(K12="X",H12*Grunddaten!$B$30,H12)))))*Grunddaten!$B$33),IF(AND(J12="X",K12="X"),H12*Grunddaten!$B$32,IF(AND(I12="X",J12="X"),H12*Grunddaten!$B$31,IF(I12="X",H12*Grunddaten!$B$28,IF(J12="X",H12*Grunddaten!$B$29,IF(K12="X",H12*Grunddaten!$B$30,H12)))))))),2) -> 0 | O12: =M12+(N12*Grunddaten!B$35) -> 0 | P12: =IF(Januar!B$40="","",Januar!B$40) ->  | Q12: =IF(Januar!B$37="","",Januar!B$37) -> 0 | R12: =IF(Januar!B$38="","",Januar!B$38) ->  | S12: =IF(P12="",IF(Q12=5,Grunddaten!$B$38,IF(Q12=4,Grunddaten!$C$38,IF(Q12=3,Grunddaten!$D$38,IF(Q12=2,Grunddaten!$E$38,IF(Q12=1,Grunddaten!$F$38,IF(Q12="",0)))))),(IF(Q12=5,Grunddaten!$B$39,IF(Q12=4,Grunddaten!$C$39,IF(Q12=3,Grunddaten!$D$39,IF(Q12=2,Grunddaten!$E$39,IF(Q12=1,Grunddaten!$F$39,IF(Q12="",0))))))))+IF(R12="",0,Grunddaten!$B$40) -> 0 | T12: 0 | U12: =IF(P12="x",IF(Q12=5,Grunddaten!$B$38-Grunddaten!$B$39,IF(Q12=4,Grunddaten!$C$38-Grunddaten!$C$39,IF(Q12=3,Grunddaten!$D$38-Grunddaten!$D$39,IF(Q12=2,Grunddaten!$E$38-Grunddaten!$E$39,IF(Q12=1,Grunddaten!$F$38-Grunddaten!$F$39))))),"") -> 
A13: 6 | C13: =DATE(YEAR(Februar!B$4),MONTH(Februar!B$4),DAY(1)) -> 2022-02-01 | D13: =Februar!B$6 -> 00:00:00 | E13: =IF(Februar!C$31="","",IF(COUNTIF(Februar!C$9:C$12,"Ja")=4,4,COUNTIF(Februar!C$9:C$12,"Ja")+1)) ->  | F13: =IF(Februar!C$31="","",IF(OR(Februar!C$31="VÖ",Februar!C$31="NM"),"RG",Februar!C$31)) ->  | G13: 1465 | H13: =IF(E13="",0,INDEX(Grunddaten!$B$9:$E$19,MATCH(F13,Grunddaten!$A$9:$A$19,0),MATCH(E13,Grunddaten!$B$8:$E$8,0))) -> 0 | I13: =IF(Februar!C31="VÖ","x","") ->  | J13: =IF(Februar!B$7="JA","x","") ->  | K13: =IF(Februar!C$31="NM","x","") ->  | M13: =ROUND(IF(F13="SG",H13*Grunddaten!$B$25,(IF(L13="X",(IF(AND(J13="X",K13="X"),H13*Grunddaten!$B$32,IF(AND(I13="X",J13="X"),H13*Grunddaten!$B$31,IF(I13="X",H13*Grunddaten!$B$28,IF(J13="X",H13*Grunddaten!$B$29,IF(K13="X",H13*Grunddaten!$B$30,H13)))))*Grunddaten!$B$33),IF(AND(J13="X",K13="X"),H13*Grunddaten!$B$32,IF(AND(I13="X",J13="X"),H13*Grunddaten!$B$31,IF(I13="X",H13*Grunddaten!$B$28,IF(J13="X",H13*Grunddaten!$B$29,IF(K13="X",H13*Grunddaten!$B$30,H13)))))))),2) -> 0 | O13: =M13+(N13*Grunddaten!B$35) -> 0 | P13: =IF(Februar!B$40="","",Februar!B$40) ->  | Q13: =IF(Februar!B$37="","",Februar!B$37) -> 0 | R13: =IF(Februar!B$38="","",Februar!B$38) ->  | S13: =IF(P13="",IF(Q13=5,Grunddaten!$B$38,IF(Q13=4,Grunddaten!$C$38,IF(Q13=3,Grunddaten!$D$38,IF(Q13=2,Grunddaten!$E$38,IF(Q13=1,Grunddaten!$F$38,IF(Q13="",0)))))),(IF(Q13=5,Grunddaten!$B$39,IF(Q13=4,Grunddaten!$C$39,IF(Q13=3,Grunddaten!$D$39,IF(Q13=2,Grunddaten!$E$39,IF(Q13=1,Grunddaten!$F$39,IF(Q13="",0))))))))+IF(R13="",0,Grunddaten!$B$40) -> 0 | T13: 0 | U13: =IF(P13="x",IF(Q13=5,Grunddaten!$B$38-Grunddaten!$B$39,IF(Q13=4,Grunddaten!$C$38-Grunddaten!$C$39,IF(Q13=3,Grunddaten!$D$38-Grunddaten!$D$39,IF(Q13=2,Grunddaten!$E$38-Grunddaten!$E$39,IF(Q13=1,Grunddaten!$F$38-Grunddaten!$F$39))))),"") -> 
A14: 7 | C14: =DATE(YEAR(März!B$4),MONTH(März!B$4),DAY(1)) -> 2022-03-01 | D14: =März!B$6 -> 00:00:00 | E14: =IF(März!C$31="","",IF(COUNTIF(März!C$9:C$12,"Ja")=4,4,COUNTIF(März!C$9:C$12,"Ja")+1)) ->  | F14: =IF(März!C$31="","",IF(OR(März!C$31="VÖ",März!C$31="NM"),"RG",März!C$31)) ->  | G14: 1466 | H14: =IF(E14="",0,INDEX(Grunddaten!$B$9:$E$19,MATCH(F14,Grunddaten!$A$9:$A$19,0),MATCH(E14,Grunddaten!$B$8:$E$8,0))) -> 0 | I14: =IF(März!C31="VÖ","x","") ->  | J14: =IF(März!B$7="JA","x","") ->  | K14: =IF(März!C$31="NM","x","") ->  | M14: =ROUND(IF(F14="SG",H14*Grunddaten!$B$25,(IF(L14="X",(IF(AND(J14="X",K14="X"),H14*Grunddaten!$B$32,IF(AND(I14="X",J14="X"),H14*Grunddaten!$B$31,IF(I14="X",H14*Grunddaten!$B$28,IF(J14="X",H14*Grunddaten!$B$29,IF(K14="X",H14*Grunddaten!$B$30,H14)))))*Grunddaten!$B$33),IF(AND(J14="X",K14="X"),H14*Grunddaten!$B$32,IF(AND(I14="X",J14="X"),H14*Grunddaten!$B$31,IF(I14="X",H14*Grunddaten!$B$28,IF(J14="X",H14*Grunddaten!$B$29,IF(K14="X",H14*Grunddaten!$B$30,H14)))))))),2) -> 0 | O14: =M14+(N14*Grunddaten!B$35) -> 0 | P14: =IF(März!B$40="","",März!B$40) ->  | Q14: =IF(März!B$37="","",März!B$37) -> 0 | R14: =IF(März!B$38="","",März!B$38) ->  | S14: =IF(P14="",IF(Q14=5,Grunddaten!$B$38,IF(Q14=4,Grunddaten!$C$38,IF(Q14=3,Grunddaten!$D$38,IF(Q14=2,Grunddaten!$E$38,IF(Q14=1,Grunddaten!$F$38,IF(Q14="",0)))))),(IF(Q14=5,Grunddaten!$B$39,IF(Q14=4,Grunddaten!$C$39,IF(Q14=3,Grunddaten!$D$39,IF(Q14=2,Grunddaten!$E$39,IF(Q14=1,Grunddaten!$F$39,IF(Q14="",0))))))))+IF(R14="",0,Grunddaten!$B$40) -> 0 | T14: 0 | U14: =IF(P14="x",IF(Q14=5,Grunddaten!$B$38-Grunddaten!$B$39,IF(Q14=4,Grunddaten!$C$38-Grunddaten!$C$39,IF(Q14=3,Grunddaten!$D$38-Grunddaten!$D$39,IF(Q14=2,Grunddaten!$E$38-Grunddaten!$E$39,IF(Q14=1,Grunddaten!$F$38-Grunddaten!$F$39))))),"") -> 
A15: 8 | C15: =DATE(YEAR(April!B$4),MONTH(April!B$4),DAY(1)) -> 2022-04-01 | D15: =April!B$6 -> 00:00:00 | E15: =IF(April!C$31="","",IF(COUNTIF(April!C$9:C$12,"Ja")=4,4,COUNTIF(April!C$9:C$12,"Ja")+1)) ->  | F15: =IF(April!C$31="","",IF(OR(April!C$31="VÖ",April!C$31="NM"),"RG",April!C$31)) ->  | G15: 1467 | H15: =IF(E15="",0,INDEX(Grunddaten!$B$9:$E$19,MATCH(F15,Grunddaten!$A$9:$A$19,0),MATCH(E15,Grunddaten!$B$8:$E$8,0))) -> 0 | I15: =IF(April!C31="VÖ","x","") ->  | J15: =IF(April!B$7="JA","x","") ->  | K15: =IF(April!C$31="NM","x","") ->  | M15: =ROUND(IF(F15="SG",H15*Grunddaten!$B$25,(IF(L15="X",(IF(AND(J15="X",K15="X"),H15*Grunddaten!$B$32,IF(AND(I15="X",J15="X"),H15*Grunddaten!$B$31,IF(I15="X",H15*Grunddaten!$B$28,IF(J15="X",H15*Grunddaten!$B$29,IF(K15="X",H15*Grunddaten!$B$30,H15)))))*Grunddaten!$B$33),IF(AND(J15="X",K15="X"),H15*Grunddaten!$B$32,IF(AND(I15="X",J15="X"),H15*Grunddaten!$B$31,IF(I15="X",H15*Grunddaten!$B$28,IF(J15="X",H15*Grunddaten!$B$29,IF(K15="X",H15*Grunddaten!$B$30,H15)))))))),2) -> 0 | O15: =M15+(N15*Grunddaten!B$35) -> 0 | P15: =IF(April!B$40="","",April!B$40) ->  | Q15: =IF(April!B$37="","",April!B$37) -> 0 | R15: =IF(April!B$38="","",April!B$38) ->  | S15: =IF(P15="",IF(Q15=5,Grunddaten!$B$38,IF(Q15=4,Grunddaten!$C$38,IF(Q15=3,Grunddaten!$D$38,IF(Q15=2,Grunddaten!$E$38,IF(Q15=1,Grunddaten!$F$38,IF(Q15="",0)))))),(IF(Q15=5,Grunddaten!$B$39,IF(Q15=4,Grunddaten!$C$39,IF(Q15=3,Grunddaten!$D$39,IF(Q15=2,Grunddaten!$E$39,IF(Q15=1,Grunddaten!$F$39,IF(Q15="",0))))))))+IF(R15="",0,Grunddaten!$B$40) -> 0 | T15: 0 | U15: =IF(P15="x",IF(Q15=5,Grunddaten!$B$38-Grunddaten!$B$39,IF(Q15=4,Grunddaten!$C$38-Grunddaten!$C$39,IF(Q15=3,Grunddaten!$D$38-Grunddaten!$D$39,IF(Q15=2,Grunddaten!$E$38-Grunddaten!$E$39,IF(Q15=1,Grunddaten!$F$38-Grunddaten!$F$39))))),"") -> 
A16: 9 | C16: =DATE(YEAR(Mai!B$4),MONTH(Mai!B$4),DAY(1)) -> 2022-05-01 | D16: =Mai!B$6 -> 00:00:00 | E16: =IF(Mai!C$31="","",IF(COUNTIF(Mai!C$9:C$12,"Ja")=4,4,COUNTIF(Mai!C$9:C$12,"Ja")+1)) ->  | F16: =IF(Mai!C$31="","",IF(OR(Mai!C$31="VÖ",Mai!C$31="NM"),"RG",Mai!C$31)) ->  | G16: 1468 | H16: =IF(E16="",0,INDEX(Grunddaten!$B$9:$E$19,MATCH(F16,Grunddaten!$A$9:$A$19,0),MATCH(E16,Grunddaten!$B$8:$E$8,0))) -> 0 | I16: =IF(Mai!C31="VÖ","x","") ->  | J16: =IF(Mai!B$7="JA","x","") ->  | K16: =IF(Mai!C$31="NM","x","") ->  | M16: =ROUND(IF(F16="SG",H16*Grunddaten!$B$25,(IF(L16="X",(IF(AND(J16="X",K16="X"),H16*Grunddaten!$B$32,IF(AND(I16="X",J16="X"),H16*Grunddaten!$B$31,IF(I16="X",H16*Grunddaten!$B$28,IF(J16="X",H16*Grunddaten!$B$29,IF(K16="X",H16*Grunddaten!$B$30,H16)))))*Grunddaten!$B$33),IF(AND(J16="X",K16="X"),H16*Grunddaten!$B$32,IF(AND(I16="X",J16="X"),H16*Grunddaten!$B$31,IF(I16="X",H16*Grunddaten!$B$28,IF(J16="X",H16*Grunddaten!$B$29,IF(K16="X",H16*Grunddaten!$B$30,H16)))))))),2) -> 0 | O16: =M16+(N16*Grunddaten!B$35) -> 0 | P16: =IF(Mai!B$40="","",Mai!B$40) ->  | Q16: =IF(Mai!B$37="","",Mai!B$37) -> 0 | R16: =IF(Mai!B$38="","",Mai!B$38) ->  | S16: =IF(P16="",IF(Q16=5,Grunddaten!$B$38,IF(Q16=4,Grunddaten!$C$38,IF(Q16=3,Grunddaten!$D$38,IF(Q16=2,Grunddaten!$E$38,IF(Q16=1,Grunddaten!$F$38,IF(Q16="",0)))))),(IF(Q16=5,Grunddaten!$B$39,IF(Q16=4,Grunddaten!$C$39,IF(Q16=3,Grunddaten!$D$39,IF(Q16=2,Grunddaten!$E$39,IF(Q16=1,Grunddaten!$F$39,IF(Q16="",0))))))))+IF(R16="",0,Grunddaten!$B$40) -> 0 | T16: 0 | U16: =IF(P16="x",IF(Q16=5,Grunddaten!$B$38-Grunddaten!$B$39,IF(Q16=4,Grunddaten!$C$38-Grunddaten!$C$39,IF(Q16=3,Grunddaten!$D$38-Grunddaten!$D$39,IF(Q16=2,Grunddaten!$E$38-Grunddaten!$E$39,IF(Q16=1,Grunddaten!$F$38-Grunddaten!$F$39))))),"") -> 
A17: 10 | C17: =DATE(YEAR(Juni!B$4),MONTH(Juni!B$4),DAY(1)) -> 2022-06-01 | D17: =Juni!B$6 -> 00:00:00 | E17: =IF(Juni!C$31="","",IF(COUNTIF(Juni!C$9:C$12,"Ja")=4,4,COUNTIF(Juni!C$9:C$12,"Ja")+1)) ->  | F17: =IF(Juni!C$31="","",IF(OR(Juni!C$31="VÖ",Juni!C$31="NM"),"RG",Juni!C$31)) ->  | G17: 1469 | H17: =IF(E17="",0,INDEX(Grunddaten!$B$9:$E$19,MATCH(F17,Grunddaten!$A$9:$A$19,0),MATCH(E17,Grunddaten!$B$8:$E$8,0))) -> 0 | I17: =IF(Juni!C31="VÖ","x","") ->  | J17: =IF(Juni!B$7="JA","x","") ->  | K17: =IF(Juni!C$31="NM","x","") ->  | M17: =ROUND(IF(F17="SG",H17*Grunddaten!$B$25,(IF(L17="X",(IF(AND(J17="X",K17="X"),H17*Grunddaten!$B$32,IF(AND(I17="X",J17="X"),H17*Grunddaten!$B$31,IF(I17="X",H17*Grunddaten!$B$28,IF(J17="X",H17*Grunddaten!$B$29,IF(K17="X",H17*Grunddaten!$B$30,H17)))))*Grunddaten!$B$33),IF(AND(J17="X",K17="X"),H17*Grunddaten!$B$32,IF(AND(I17="X",J17="X"),H17*Grunddaten!$B$31,IF(I17="X",H17*Grunddaten!$B$28,IF(J17="X",H17*Grunddaten!$B$29,IF(K17="X",H17*Grunddaten!$B$30,H17)))))))),2) -> 0 | O17: =M17+(N17*Grunddaten!B$35) -> 0 | P17: =IF(Juni!B$40="","",Juni!B$40) ->  | Q17: =IF(Juni!B$37="","",Juni!B$37) -> 0 | R17: =IF(Juni!B$38="","",Juni!B$38) ->  | S17: =IF(P17="",IF(Q17=5,Grunddaten!$B$38,IF(Q17=4,Grunddaten!$C$38,IF(Q17=3,Grunddaten!$D$38,IF(Q17=2,Grunddaten!$E$38,IF(Q17=1,Grunddaten!$F$38,IF(Q17="",0)))))),(IF(Q17=5,Grunddaten!$B$39,IF(Q17=4,Grunddaten!$C$39,IF(Q17=3,Grunddaten!$D$39,IF(Q17=2,Grunddaten!$E$39,IF(Q17=1,Grunddaten!$F$39,IF(Q17="",0))))))))+IF(R17="",0,Grunddaten!$B$40) -> 0 | T17: 0 | U17: =IF(P17="x",IF(Q17=5,Grunddaten!$B$38-Grunddaten!$B$39,IF(Q17=4,Grunddaten!$C$38-Grunddaten!$C$39,IF(Q17=3,Grunddaten!$D$38-Grunddaten!$D$39,IF(Q17=2,Grunddaten!$E$38-Grunddaten!$E$39,IF(Q17=1,Grunddaten!$F$38-Grunddaten!$F$39))))),"") -> 
A18: 11 | C18: =DATE(YEAR(Juli!B$4),MONTH(Juli!B$4),DAY(1)) -> 2022-07-01 | D18: =Juli!B$6 -> 00:00:00 | E18: =IF(Juli!C$31="","",IF(COUNTIF(Juli!C$9:C$12,"Ja")=4,4,COUNTIF(Juli!C$9:C$12,"Ja")+1)) ->  | F18: =IF(Juli!C$31="","",IF(OR(Juli!C$31="VÖ",Juli!C$31="NM"),"RG",Juli!C$31)) ->  | G18: 1470 | H18: =IF(E18="",0,INDEX(Grunddaten!$B$9:$E$19,MATCH(F18,Grunddaten!$A$9:$A$19,0),MATCH(E18,Grunddaten!$B$8:$E$8,0))) -> 0 | I18: =IF(Juli!C31="VÖ","x","") ->  | J18: =IF(Juli!B$7="JA","x","") ->  | K18: =IF(Juli!C$31="NM","x","") ->  | M18: =ROUND(IF(F18="SG",H18*Grunddaten!$B$25,(IF(L18="X",(IF(AND(J18="X",K18="X"),H18*Grunddaten!$B$32,IF(AND(I18="X",J18="X"),H18*Grunddaten!$B$31,IF(I18="X",H18*Grunddaten!$B$28,IF(J18="X",H18*Grunddaten!$B$29,IF(K18="X",H18*Grunddaten!$B$30,H18)))))*Grunddaten!$B$33),IF(AND(J18="X",K18="X"),H18*Grunddaten!$B$32,IF(AND(I18="X",J18="X"),H18*Grunddaten!$B$31,IF(I18="X",H18*Grunddaten!$B$28,IF(J18="X",H18*Grunddaten!$B$29,IF(K18="X",H18*Grunddaten!$B$30,H18)))))))),2) -> 0 | O18: =M18+(N18*Grunddaten!B$35) -> 0 | P18: =IF(Juli!B$40="","",Juli!B$40) ->  | Q18: =IF(Juli!B$37="","",Juli!B$37) -> 0 | R18: =IF(Juli!B$38="","",Juli!B$38) ->  | S18: =IF(P18="",IF(Q18=5,Grunddaten!$B$38,IF(Q18=4,Grunddaten!$C$38,IF(Q18=3,Grunddaten!$D$38,IF(Q18=2,Grunddaten!$E$38,IF(Q18=1,Grunddaten!$F$38,IF(Q18="",0)))))),(IF(Q18=5,Grunddaten!$B$39,IF(Q18=4,Grunddaten!$C$39,IF(Q18=3,Grunddaten!$D$39,IF(Q18=2,Grunddaten!$E$39,IF(Q18=1,Grunddaten!$F$39,IF(Q18="",0))))))))+IF(R18="",0,Grunddaten!$B$40) -> 0 | T18: 0 | U18: =IF(P18="x",IF(Q18=5,Grunddaten!$B$38-Grunddaten!$B$39,IF(Q18=4,Grunddaten!$C$38-Grunddaten!$C$39,IF(Q18=3,Grunddaten!$D$38-Grunddaten!$D$39,IF(Q18=2,Grunddaten!$E$38-Grunddaten!$E$39,IF(Q18=1,Grunddaten!$F$38-Grunddaten!$F$39))))),"") -> 
A19: 12 | C19: =DATE(YEAR(August!B$4),MONTH(August!B$4),DAY(1)) -> 2022-08-01 | D19: =August!B$6 -> 00:00:00 | E19: =IF(August!C$31="","",IF(COUNTIF(August!C$9:C$12,"Ja")=4,4,COUNTIF(August!C$9:C$12,"Ja")+1)) ->  | F19: =IF(August!C$31="","",IF(OR(August!C$31="VÖ",August!C$31="NM"),"RG",August!C$31)) ->  | G19: =DATEDIF(D19,C19,"m") -> 1471 | H19: =IF(E19="",0,INDEX(Grunddaten!$B$9:$E$19,MATCH(F19,Grunddaten!$A$9:$A$19,0),MATCH(E19,Grunddaten!$B$8:$E$8,0))) -> 0 | I19: =IF(August!C31="VÖ","x","") ->  | J19: =IF(August!B$7="JA","x","") ->  | K19: =IF(August!C$31="NM","x","") ->  | M19: =ROUND(IF(F19="SG",H19*Grunddaten!$B$25,(IF(L19="X",(IF(AND(J19="X",K19="X"),H19*Grunddaten!$B$32,IF(AND(I19="X",J19="X"),H19*Grunddaten!$B$31,IF(I19="X",H19*Grunddaten!$B$28,IF(J19="X",H19*Grunddaten!$B$29,IF(K19="X",H19*Grunddaten!$B$30,H19)))))*Grunddaten!$B$33),IF(AND(J19="X",K19="X"),H19*Grunddaten!$B$32,IF(AND(I19="X",J19="X"),H19*Grunddaten!$B$31,IF(I19="X",H19*Grunddaten!$B$28,IF(J19="X",H19*Grunddaten!$B$29,IF(K19="X",H19*Grunddaten!$B$30,H19)))))))),2) -> 0 | O19: =M19+(N19*Grunddaten!B$35) -> 0 | P19: =IF(August!B$40="","",August!B$40) ->  | Q19: =IF(August!B$37="","",August!B$37) -> 0 | R19: =IF(August!B$38="","",August!B$38) ->  | S19: =IF(P19="",IF(Q19=5,Grunddaten!$B$38,IF(Q19=4,Grunddaten!$C$38,IF(Q19=3,Grunddaten!$D$38,IF(Q19=2,Grunddaten!$E$38,IF(Q19=1,Grunddaten!$F$38,IF(Q19="",0)))))),(IF(Q19=5,Grunddaten!$B$39,IF(Q19=4,Grunddaten!$C$39,IF(Q19=3,Grunddaten!$D$39,IF(Q19=2,Grunddaten!$E$39,IF(Q19=1,Grunddaten!$F$39,IF(Q19="",0))))))))+IF(R19="",0,Grunddaten!$B$40) -> 0 | T19: =S19+O19 -> 0 | U19: =IF(P19="x",IF(Q19=5,Grunddaten!$B$38-Grunddaten!$B$39,IF(Q19=4,Grunddaten!$C$38-Grunddaten!$C$39,IF(Q19=3,Grunddaten!$D$38-Grunddaten!$D$39,IF(Q19=2,Grunddaten!$E$38-Grunddaten!$E$39,IF(Q19=1,Grunddaten!$F$38-Grunddaten!$F$39))))),"") -> 
U20: =IF(P20="x",IF(Q20=5,Grunddaten!$B$38-Grunddaten!$B$39,IF(Q20=4,Grunddaten!$C$38-Grunddaten!$C$39,IF(Q20=3,Grunddaten!$D$38-Grunddaten!$D$39,IF(Q20=2,Grunddaten!$E$38-Grunddaten!$E$39,IF(Q20=1,Grunddaten!$F$38-Grunddaten!$F$39))))),"") -> 
U21: =IF(P21="x",IF(Q21=5,Grunddaten!$B$38-Grunddaten!$B$39,IF(Q21=4,Grunddaten!$C$38-Grunddaten!$C$39,IF(Q21=3,Grunddaten!$D$38-Grunddaten!$D$39,IF(Q21=2,Grunddaten!$E$38-Grunddaten!$E$39,IF(Q21=1,Grunddaten!$F$38-Grunddaten!$F$39))))),"") -> 
U22: =IF(P22="x",IF(Q22=5,Grunddaten!$B$38-Grunddaten!$B$39,IF(Q22=4,Grunddaten!$C$38-Grunddaten!$C$39,IF(Q22=3,Grunddaten!$D$38-Grunddaten!$D$39,IF(Q22=2,Grunddaten!$E$38-Grunddaten!$E$39,IF(Q22=1,Grunddaten!$F$38-Grunddaten!$F$39))))),"") -> 
U23: =IF(P23="x",IF(Q23=5,Grunddaten!$B$38-Grunddaten!$B$39,IF(Q23=4,Grunddaten!$C$38-Grunddaten!$C$39,IF(Q23=3,Grunddaten!$D$38-Grunddaten!$D$39,IF(Q23=2,Grunddaten!$E$38-Grunddaten!$E$39,IF(Q23=1,Grunddaten!$F$38-Grunddaten!$F$39))))),"") -> 
U24: =IF(P24="x",IF(Q24=5,Grunddaten!$B$38-Grunddaten!$B$39,IF(Q24=4,Grunddaten!$C$38-Grunddaten!$C$39,IF(Q24=3,Grunddaten!$D$38-Grunddaten!$D$39,IF(Q24=2,Grunddaten!$E$38-Grunddaten!$E$39,IF(Q24=1,Grunddaten!$F$38-Grunddaten!$F$39))))),"") -> 
U25: =IF(P25="x",IF(Q25=5,Grunddaten!$B$38-Grunddaten!$B$39,IF(Q25=4,Grunddaten!$C$38-Grunddaten!$C$39,IF(Q25=3,Grunddaten!$D$38-Grunddaten!$D$39,IF(Q25=2,Grunddaten!$E$38-Grunddaten!$E$39,IF(Q25=1,Grunddaten!$F$38-Grunddaten!$F$39))))),"") -> 
U26: =IF(P26="x",IF(Q26=5,Grunddaten!$B$38-Grunddaten!$B$39,IF(Q26=4,Grunddaten!$C$38-Grunddaten!$C$39,IF(Q26=3,Grunddaten!$D$38-Grunddaten!$D$39,IF(Q26=2,Grunddaten!$E$38-Grunddaten!$E$39,IF(Q26=1,Grunddaten!$F$38-Grunddaten!$F$39))))),"") -> 
U27: =IF(P27="x",IF(Q27=5,Grunddaten!$B$38-Grunddaten!$B$39,IF(Q27=4,Grunddaten!$C$38-Grunddaten!$C$39,IF(Q27=3,Grunddaten!$D$38-Grunddaten!$D$39,IF(Q27=2,Grunddaten!$E$38-Grunddaten!$E$39,IF(Q27=1,Grunddaten!$F$38-Grunddaten!$F$39))))),"") -> 
U28: =IF(P28="x",IF(Q28=5,Grunddaten!$B$38-Grunddaten!$B$39,IF(Q28=4,Grunddaten!$C$38-Grunddaten!$C$39,IF(Q28=3,Grunddaten!$D$38-Grunddaten!$D$39,IF(Q28=2,Grunddaten!$E$38-Grunddaten!$E$39,IF(Q28=1,Grunddaten!$F$38-Grunddaten!$F$39))))),"") -> 
U29: =IF(P29="x",IF(Q29=5,Grunddaten!$B$38-Grunddaten!$B$39,IF(Q29=4,Grunddaten!$C$38-Grunddaten!$C$39,IF(Q29=3,Grunddaten!$D$38-Grunddaten!$D$39,IF(Q29=2,Grunddaten!$E$38-Grunddaten!$E$39,IF(Q29=1,Grunddaten!$F$38-Grunddaten!$F$39))))),"") -> 
U30: =IF(P30="x",IF(Q30=5,Grunddaten!$B$38-Grunddaten!$B$39,IF(Q30=4,Grunddaten!$C$38-Grunddaten!$C$39,IF(Q30=3,Grunddaten!$D$38-Grunddaten!$D$39,IF(Q30=2,Grunddaten!$E$38-Grunddaten!$E$39,IF(Q30=1,Grunddaten!$F$38-Grunddaten!$F$39))))),"") -> 
U31: =IF(P31="x",IF(Q31=5,Grunddaten!$B$38-Grunddaten!$B$39,IF(Q31=4,Grunddaten!$C$38-Grunddaten!$C$39,IF(Q31=3,Grunddaten!$D$38-Grunddaten!$D$39,IF(Q31=2,Grunddaten!$E$38-Grunddaten!$E$39,IF(Q31=1,Grunddaten!$F$38-Grunddaten!$F$39))))),"") -> 
U32: =IF(P32="x",IF(Q32=5,Grunddaten!$B$38-Grunddaten!$B$39,IF(Q32=4,Grunddaten!$C$38-Grunddaten!$C$39,IF(Q32=3,Grunddaten!$D$38-Grunddaten!$D$39,IF(Q32=2,Grunddaten!$E$38-Grunddaten!$E$39,IF(Q32=1,Grunddaten!$F$38-Grunddaten!$F$39))))),"") -> 
U33: =IF(P33="x",IF(Q33=5,Grunddaten!$B$38-Grunddaten!$B$39,IF(Q33=4,Grunddaten!$C$38-Grunddaten!$C$39,IF(Q33=3,Grunddaten!$D$38-Grunddaten!$D$39,IF(Q33=2,Grunddaten!$E$38-Grunddaten!$E$39,IF(Q33=1,Grunddaten!$F$38-Grunddaten!$F$39))))),"") -> 
U34: =IF(P34="x",IF(Q34=5,Grunddaten!$B$38-Grunddaten!$B$39,IF(Q34=4,Grunddaten!$C$38-Grunddaten!$C$39,IF(Q34=3,Grunddaten!$D$38-Grunddaten!$D$39,IF(Q34=2,Grunddaten!$E$38-Grunddaten!$E$39,IF(Q34=1,Grunddaten!$F$38-Grunddaten!$F$39))))),"") -> 
U35: =IF(P35="x",IF(Q35=5,Grunddaten!$B$38-Grunddaten!$B$39,IF(Q35=4,Grunddaten!$C$38-Grunddaten!$C$39,IF(Q35=3,Grunddaten!$D$38-Grunddaten!$D$39,IF(Q35=2,Grunddaten!$E$38-Grunddaten!$E$39,IF(Q35=1,Grunddaten!$F$38-Grunddaten!$F$39))))),"") -> 
C37: Namen löschen | F37: alle Eingaben löschen
C42: ABC

Sheet September
A1: Gebührenberechnung für die Kindertagesstätten der Stadt Göppingen
A4: Betreuungsmonat: | B4: 2021-09-01
A6: Geburtsdatum des zu betreuenden Kindes
A7: U3-Zuschlag | B7: =IF(B4="","",IF(Online_Gebührenberechnung!G8>35,"","JA")) -> 
C8: auf Familienrabatt anrechenbar?
A9: Geburtsdatum Geschwisterkinder | C9: =IF(B9="","",IF(DATEDIF(B9,($B$4-DAY($B$4)+1),"y")>=18,"Nein","Ja")) -> 
A10: Geburtsdatum Geschwisterkinder | C10: =IF(B10="","",IF(DATEDIF(B10,($B$4-DAY($B$4)+1),"y")>=18,"Nein","Ja")) -> 
A11: Geburtsdatum Geschwisterkinder | C11: =IF(B11="","",IF(DATEDIF(B11,($B$4-DAY($B$4)+1),"y")>=18,"Nein","Ja")) -> 
A12: Geburtsdatum Geschwisterkinder | C12: =IF(B12="","",IF(DATEDIF(B12,($B$4-DAY($B$4)+1),"y")>=18,"Nein","Ja")) -> 
A15: Betreuungsform | B15: Umfang | C15: Kennzeichen
A16: betreute Spielgruppe für U3 | B16: bis 15 h / Woche | C16: SG
A17: Halbtagsgruppe (ab 2 Jahre bis Schuleintritt) | B17: bis 20 h / Woche | C17: HG
A18: Regelkindergarten (vormittags + nachmittags) erweiterte Regelbetreuung (5 Std. vorm. + 2 Nachmittage / Woche á 2,5 Std.) | B18: bis 30 h / Woche | C18: RG
A19: Regelkindergarten (nachmittags) | B19: bis 10 h / Woche | C19: NM
A20: Veränderte Öffnungszeiten (bis 7 Std. zusammenhängend) | B20: bis 35 h / Woche | C20: VÖ
A21: Ganztagesbetreuung (bis Schuleintritt) (über 35 h / Woche) zzgl. Verpflegung | B21: bis 8 Std. Tag | C21: GT8
B22: bis 9 Std. / Tag | C22: GT9
B23: bis 10 Std. / Tag | C23: GT10
A24: Schülerhort (Schuleintritt bis max. 14 Jahre) (im Zeitraum von 6:30 - 17:00 Uhr) zzgl. Verpflegung | B24: bis 5 Std. Tag | C24: SH5
B25: bis 6 Std. / Tag | C25: SH6
B26: bis 8 Std. Tag | C26: SH8
B27: bis 9 Std. / Tag | C27: SH9
B28: bis 10 Std. / Tag | C28: SH10
A29: Abendgruppe (17:00 - 20:00 Uhr) | B29: bis 15 h / Woche | C29: AG
A31: gewünschte Betreuungsform
A32: Zusatz Einzelstunden (5 € / Stunde)
A33: zusätzliche Abendbetreuung gewünscht | C33: =IF(B7="JA","u3","") -> 
A36: Verpflegung
A37: Anzahl Essen pro Woche
A38: Vesper
A39: Ablaufdatum Bildungs- und Teilhabepaket (BuT)
A40: BuT für den ganzen Monat | B40: =IF(B39="","",IF(B39>=B4,"x","")) -> 
A42: Gebührenzusammenstellung
A43: Betreuung | B43: =5*C32+IF(DAY(B4)>14,0.5*(Online_Gebührenberechnung!O8+IF(C33="AG",AG!G8,0)),Online_Gebührenberechnung!O8+IF(C33="AG",AG!G8,0)) -> 0
A44: Verpflegung | B44: =IF(DAY(B4)>14,IF(B38="x",(0.5*Online_Gebührenberechnung!S8)+(0.5*Grunddaten!B40),0.5*Online_Gebührenberechnung!S8),Online_Gebührenberechnung!S8) -> 0
A45: Gesamtgebühren | B45: =B43+B44 -> 0

Sheet Oktober (hidden)
A1: Gebührenberechnung für die Kindertagesstätten der Stadt Göppingen
A4: Betreuungsmonat: | B4: =DATE(YEAR(September!B4),MONTH(September!B4)+1,DAY(1)) -> 2021-10-01
A5: =Bescheid!A18 -> ???
A6: Geburtsdatum des zu betreuenden Kindes | B6: =September!B6 -> 00:00:00
A7: U3-Zuschlag | B7: =IF(B4="","",IF(Online_Gebührenberechnung!G9>35,"","JA")) -> 
C8: auf Familienrabatt anrechenbar?
A9: Geburtsdatum Geschwisterkinder | B9: =IF(September!B9="","",September!B9) ->  | C9: =IF(B9="","",IF(DATEDIF(B9,($B$4-DAY($B$4)+1),"y")>=18,"Nein","Ja")) -> 
A10: Geburtsdatum Geschwisterkinder | B10: =IF(September!B10="","",September!B10) ->  | C10: =IF(B10="","",IF(DATEDIF(B10,($B$4-DAY($B$4)+1),"y")>=18,"Nein","Ja")) -> 
A11: Geburtsdatum Geschwisterkinder | B11: =IF(September!B11="","",September!B11) ->  | C11: =IF(B11="","",IF(DATEDIF(B11,($B$4-DAY($B$4)+1),"y")>=18,"Nein","Ja")) -> 
A12: Geburtsdatum Geschwisterkinder | B12: =IF(September!B12="","",September!B12) ->  | C12: =IF(B12="","",IF(DATEDIF(B12,($B$4-DAY($B$4)+1),"y")>=18,"Nein","Ja")) -> 
A15: Betreuungsform | B15: Umfang | C15: Kennzeichen
A16: betreute Spielgruppe für U3 | B16: bis 15 h / Woche | C16: SG
A17: Halbtagsgruppe (ab 2 Jahre bis Schuleintritt) | B17: bis 20 h / Woche | C17: HG
A18: Regelkindergarten (vormittags + nachmittags) erweiterte Regelbetreuung (5 Std. vorm. + 2 Nachmittage / Woche á 2,5 Std.) | B18: bis 30 h / Woche | C18: RG
A19: Regelkindergarten (nachmittags) | B19: bis 10 h / Woche | C19: NM
A20: Veränderte Öffnungszeiten (bis 7 Std. zusammenhängend) | B20: bis 35 h / Woche | C20: VÖ
A21: Ganztagesbetreuung (bis Schuleintritt) (über 35 h / Woche) zzgl. Verpflegung | B21: bis 8 Std. Tag | C21: GT8
B22: bis 9 Std. / Tag | C22: GT9
B23: bis 10 Std. / Tag | C23: GT10
A24: Schülerhort (Schuleintritt bis max. 14 Jahre) (im Zeitraum von 6:30 - 17:00 Uhr) zzgl. Verpflegung | B24: bis 5 Std. Tag | C24: SH5
B25: bis 6 Std. / Tag | C25: SH6
B26: bis 8 Std. Tag | C26: SH8
B27: bis 9 Std. / Tag | C27: SH9
B28: bis 10 Std. / Tag | C28: SH10
A29: Abendgruppe (17:00 - 20:00 Uhr) | B29: bis 15 h / Woche | C29: AG
A31: gewünschte Betreuungsform | C31: =IF(DAY(September!$B$4)=20,0,September!C31) -> 
A32: Zusatz Einzelstunden (5 € / Stunde) | C32: =IF(DAY(September!$B$4)=20,0,September!C32) -> 0
A33: zusätzliche Abendbetreuung gewünscht | C33: =IF(B7="JA","u3","") -> 
A36: Verpflegung
A37: Anzahl Essen pro Woche | B37: =IF(DAY(September!$B$4)=20,0,September!B37) -> 0
A38: Vesper | B38: =IF(DAY(September!B4)=20,"",IF(September!B38="","",September!B38)) -> 
A39: Ablaufdatum Bildungs- und Teilhabepaket (BuT) | B39: =IF(September!B39="","",September!B39) -> 
A40: BuT für den ganzen Monat | B40: =IF(B39="","",IF(B39>=B4,"x","")) -> 
A42: Gebührenzusammenstellung
A43: Betreuung | B43: =IF(AND(C31=0,C33=0),0,5*C32+IF(DAY(B4)>14,0.5*(Online_Gebührenberechnung!O9+IF(C33="AG",AG!G9,0)),Online_Gebührenberechnung!O9+IF(C33="AG",AG!G9,0))) -> 0
A44: Verpflegung | B44: =IF(DAY(B4)>14,IF(B38="x",(0.5*Online_Gebührenberechnung!S9)+(0.5*Grunddaten!B40),0.5*Online_Gebührenberechnung!S9),Online_Gebührenberechnung!S9) -> 0
A45: Gesamtgebühren | B45: =B43+B44 -> 0

Sheet November (hidden)
A1: Gebührenberechnung für die Kindertagesstätten der Stadt Göppingen
A4: Betreuungsmonat: | B4: =DATE(YEAR(Oktober!B4),MONTH(Oktober!B4)+1,DAY(1)) -> 2021-11-01
A5: =Bescheid!A18 -> ???
A6: Geburtsdatum des zu betreuenden Kindes | B6: =Oktober!B6 -> 00:00:00
A7: U3-Zuschlag | B7: =IF(B4="","",IF(Online_Gebührenberechnung!G10>35,"","JA")) -> 
C8: auf Familienrabatt anrechenbar?
A9: Geburtsdatum Geschwisterkinder | B9: =IF(Oktober!B9="","",Oktober!B9) ->  | C9: =IF(B9="","",IF(DATEDIF(B9,($B$4-DAY($B$4)+1),"y")>=18,"Nein","Ja")) -> 
A10: Geburtsdatum Geschwisterkinder | B10: =IF(Oktober!B10="","",Oktober!B10) ->  | C10: =IF(B10="","",IF(DATEDIF(B10,($B$4-DAY($B$4)+1),"y")>=18,"Nein","Ja")) -> 
A11: Geburtsdatum Geschwisterkinder | B11: =IF(Oktober!B11="","",Oktober!B11) ->  | C11: =IF(B11="","",IF(DATEDIF(B11,($B$4-DAY($B$4)+1),"y")>=18,"Nein","Ja")) -> 
A12: Geburtsdatum Geschwisterkinder | B12: =IF(Oktober!B12="","",Oktober!B12) ->  | C12: =IF(B12="","",IF(DATEDIF(B12,($B$4-DAY($B$4)+1),"y")>=18,"Nein","Ja")) -> 
A15: Betreuungsform | B15: Umfang | C15: Kennzeichen
A16: betreute Spielgruppe für U3 | B16: bis 15 h / Woche | C16: SG
A17: Halbtagsgruppe (ab 2 Jahre bis Schuleintritt) | B17: bis 20 h / Woche | C17: HG
A18: Regelkindergarten (vormittags + nachmittags) erweiterte Regelbetreuung (5 Std. vorm. + 2 Nachmittage / Woche á 2,5 Std.) | B18: bis 30 h / Woche | C18: RG
A19: Regelkindergarten (nachmittags) | B19: bis 10 h / Woche | C19: NM
A20: Veränderte Öffnungszeiten (bis 7 Std. zusammenhängend) | B20: bis 35 h / Woche | C20: VÖ
A21: Ganztagesbetreuung (bis Schuleintritt) (über 35 h / Woche) zzgl. Verpflegung | B21: bis 8 Std. Tag | C21: GT8
B22: bis 9 Std. / Tag | C22: GT9
B23: bis 10 Std. / Tag | C23: GT10
A24: Schülerhort (Schuleintritt bis max. 14 Jahre) (im Zeitraum von 6:30 - 17:00 Uhr) zzgl. Verpflegung | B24: bis 5 Std. Tag | C24: SH5
B25: bis 6 Std. / Tag | C25: SH6
B26: bis 8 Std. Tag | C26: SH8
B27: bis 9 Std. / Tag | C27: SH9
B28: bis 10 Std. / Tag | C28: SH10
A29: Abendgruppe (17:00 - 20:00 Uhr) | B29: bis 15 h / Woche | C29: AG
A31: gewünschte Betreuungsform | C31: =IF(DAY(Oktober!$B$4)=20,0,Oktober!C31) -> 
A32: Zusatz Einzelstunden (5 € / Stunde) | C32: =IF(DAY(Oktober!$B$4)=20,0,Oktober!C32) -> 0
A33: zusätzliche Abendbetreuung gewünscht | C33: =IF(B7="JA","u3","") -> 
A36: Verpflegung
A37: Anzahl Essen pro Woche | B37: =IF(DAY(Oktober!$B$4)=20,0,Oktober!B37) -> 0
A38: Vesper | B38: =IF(DAY(Oktober!B4)=20,"",IF(Oktober!B38="","",Oktober!B38)) -> 
A39: Ablaufdatum Bildungs- und Teilhabepaket (BuT) | B39: =IF(Oktober!B39="","",Oktober!B39) -> 
A40: BuT für den ganzen Monat | B40: =IF(B39="","",IF(B39>=B4,"x","")) -> 
A42: Gebührenzusammenstellung
A43: Betreuung | B43: =IF(AND(C31=0,C33=0),0,5*C32+IF(DAY(B4)>14,0.5*(Online_Gebührenberechnung!O10+IF(C33="AG",AG!G10,0)),Online_Gebührenberechnung!O10+IF(C33="AG",AG!G10,0))) -> 0
A44: Verpflegung | B44: =IF(DAY(B4)>14,IF(B38="x",(0.5*Online_Gebührenberechnung!S10)+(0.5*Grunddaten!B40),0.5*Online_Gebührenberechnung!S10),Online_Gebührenberechnung!S10) -> 0
A45: Gesamtgebühren | B45: =B43+B44 -> 0

Sheet Dezember (hidden)
A1: Gebührenberechnung für die Kindertagesstätten der Stadt Göppingen
A4: Betreuungsmonat: | B4: =DATE(YEAR(November!B4),MONTH(November!B4)+1,DAY(1)) -> 2021-12-01
A5: =Bescheid!A18 -> ???
A6: Geburtsdatum des zu betreuenden Kindes | B6: =November!B6 -> 00:00:00
A7: U3-Zuschlag | B7: =IF(B4="","",IF(Online_Gebührenberechnung!G11>35,"","JA")) -> 
C8: auf Familienrabatt anrechenbar?
A9: Geburtsdatum Geschwisterkinder | B9: =IF(November!B9="","",November!B9) ->  | C9: =IF(B9="","",IF(DATEDIF(B9,($B$4-DAY($B$4)+1),"y")>=18,"Nein","Ja")) -> 
A10: Geburtsdatum Geschwisterkinder | B10: =IF(November!B10="","",November!B10) ->  | C10: =IF(B10="","",IF(DATEDIF(B10,($B$4-DAY($B$4)+1),"y")>=18,"Nein","Ja")) -> 
A11: Geburtsdatum Geschwisterkinder | B11: =IF(November!B11="","",November!B11) ->  | C11: =IF(B11="","",IF(DATEDIF(B11,($B$4-DAY($B$4)+1),"y")>=18,"Nein","Ja")) -> 
A12: Geburtsdatum Geschwisterkinder | B12: =IF(November!B12="","",November!B12) ->  | C12: =IF(B12="","",IF(DATEDIF(B12,($B$4-DAY($B$4)+1),"y")>=18,"Nein","Ja")) -> 
A15: Betreuungsform | B15: Umfang | C15: Kennzeichen
A16: betreute Spielgruppe für U3 | B16: bis 15 h / Woche | C16: SG
A17: Halbtagsgruppe (ab 2 Jahre bis Schuleintritt) | B17: bis 20 h / Woche | C17: HG
A18: Regelkindergarten (vormittags + nachmittags) erweiterte Regelbetreuung (5 Std. vorm. + 2 Nachmittage / Woche á 2,5 Std.) | B18: bis 30 h / Woche | C18: RG
A19: Regelkindergarten (nachmittags) | B19: bis 10 h / Woche | C19: NM
A20: Veränderte Öffnungszeiten (bis 7 Std. zusammenhängend) | B20: bis 35 h / Woche | C20: VÖ
A21: Ganztagesbetreuung (bis Schuleintritt) (über 35 h / Woche) zzgl. Verpflegung | B21: bis 8 Std. Tag | C21: GT8
B22: bis 9 Std. / Tag | C22: GT9
B23: bis 10 Std. / Tag | C23: GT10
A24: Schülerhort (Schuleintritt bis max. 14 Jahre) (im Zeitraum von 6:30 - 17:00 Uhr) zzgl. Verpflegung | B24: bis 5 Std. Tag | C24: SH5
B25: bis 6 Std. / Tag | C25: SH6
B26: bis 8 Std. Tag | C26: SH8
B27: bis 9 Std. / Tag | C27: SH9
B28: bis 10 Std. / Tag | C28: SH10
A29: Abendgruppe (17:00 - 20:00 Uhr) | B29: bis 15 h / Woche | C29: AG
A31: gewünschte Betreuungsform | C31: =IF(DAY(November!$B$4)=20,0,November!C31) -> 
A32: Zusatz Einzelstunden (5 € / Stunde) | C32: =IF(DAY(November!$B$4)=20,0,November!C32) -> 0
A33: zusätzliche Abendbetreuung gewünscht | C33: =IF(B7="JA","u3","") -> 
A36: Verpflegung
A37: Anzahl Essen pro Woche | B37: =IF(DAY(November!$B$4)=20,0,November!B37) -> 0
A38: Vesper | B38: =IF(DAY(November!B4)=20,"",IF(November!B38="","",November!B38)) -> 
A39: Ablaufdatum Bildungs- und Teilhabepaket (BuT) | B39: =IF(November!B39="","",November!B39) -> 
A40: BuT für den ganzen Monat | B40: =IF(B39="","",IF(B39>=B4,"x","")) -> 
A42: Gebührenzusammenstellung
A43: Betreuung | B43: =IF(AND(C31=0,C33=0),0,5*C32+IF(DAY(B4)>14,0.5*(Online_Gebührenberechnung!O11+IF(C33="AG",AG!G11,0)),Online_Gebührenberechnung!O11+IF(C33="AG",AG!G11,0))) -> 0
A44: Verpflegung | B44: =IF(DAY(B4)>14,IF(B38="x",(0.5*Online_Gebührenberechnung!S11)+(0.5*Grunddaten!B40),0.5*Online_Gebührenberechnung!S11),Online_Gebührenberechnung!S11) -> 0
A45: Gesamtgebühren | B45: =B43+B44 -> 0

Sheet Januar (hidden)
A1: Gebührenberechnung für die Kindertagesstätten der Stadt Göppingen
A4: Betreuungsmonat: | B4: =DATE(YEAR(Dezember!B4),MONTH(Dezember!B4)+1,DAY(1)) -> 2022-01-01
A5: =Bescheid!A18 -> ???
A6: Geburtsdatum des zu betreuenden Kindes | B6: =Dezember!B6 -> 00:00:00
A7: U3-Zuschlag | B7: =IF(B4="","",IF(Online_Gebührenberechnung!G12>35,"","JA")) -> 
C8: auf Familienrabatt anrechenbar?
A9: Geburtsdatum Geschwisterkinder | B9: =IF(Dezember!B9="","",Dezember!B9) ->  | C9: =IF(B9="","",IF(DATEDIF(B9,($B$4-DAY($B$4)+1),"y")>=18,"Nein","Ja")) -> 
A10: Geburtsdatum Geschwisterkinder | B10: =IF(Dezember!B10="","",Dezember!B10) ->  | C10: =IF(B10="","",IF(DATEDIF(B10,($B$4-DAY($B$4)+1),"y")>=18,"Nein","Ja")) -> 
A11: Geburtsdatum Geschwisterkinder | B11: =IF(Dezember!B11="","",Dezember!B11) ->  | C11: =IF(B11="","",IF(DATEDIF(B11,($B$4-DAY($B$4)+1),"y")>=18,"Nein","Ja")) -> 
A12: Geburtsdatum Geschwisterkinder | B12: =IF(Dezember!B12="","",Dezember!B12) ->  | C12: =IF(B12="","",IF(DATEDIF(B12,($B$4-DAY($B$4)+1),"y")>=18,"Nein","Ja")) -> 
A15: Betreuungsform | B15: Umfang | C15: Kennzeichen
A16: betreute Spielgruppe für U3 | B16: bis 15 h / Woche | C16: SG
A17: Halbtagsgruppe (ab 2 Jahre bis Schuleintritt) | B17: bis 20 h / Woche | C17: HG
A18: Regelkindergarten (vormittags + nachmittags) erweiterte Regelbetreuung (5 Std. vorm. + 2 Nachmittage / Woche á 2,5 Std.) | B18: bis 30 h / Woche | C18: RG
A19: Regelkindergarten (nachmittags) | B19: bis 10 h / Woche | C19: NM
A20: Veränderte Öffnungszeiten (bis 7 Std. zusammenhängend) | B20: bis 35 h / Woche | C20: VÖ
A21: Ganztagesbetreuung (bis Schuleintritt) (über 35 h / Woche) zzgl. Verpflegung | B21: bis 8 Std. Tag | C21: GT8
B22: bis 9 Std. / Tag | C22: GT9
B23: bis 10 Std. / Tag | C23: GT10
A24: Schülerhort (Schuleintritt bis max. 14 Jahre) (im Zeitraum von 6:30 - 17:00 Uhr) zzgl. Verpflegung | B24: bis 5 Std. Tag | C24: SH5
B25: bis 6 Std. / Tag | C25: SH6
B26: bis 8 Std. Tag | C26: SH8
B27: bis 9 Std. / Tag | C27: SH9
B28: bis 10 Std. / Tag | C28: SH10
A29: Abendgruppe (17:00 - 20:00 Uhr) | B29: bis 15 h / Woche | C29: AG
A31: gewünschte Betreuungsform | C31: =IF(DAY(Dezember!$B$4)=20,0,Dezember!C31) -> 
A32: Zusatz Einzelstunden (5 € / Stunde) | C32: =IF(DAY(Dezember!$B$4)=20,0,Dezember!C32) -> 0
A33: zusätzliche Abendbetreuung gewünscht | C33: =IF(B7="JA","u3","") -> 
A36: Verpflegung
A37: Anzahl Essen pro Woche | B37: =IF(DAY(Dezember!$B$4)=20,0,Dezember!B37) -> 0
A38: Vesper | B38: =IF(DAY(Dezember!B4)=20,"",IF(Dezember!B38="","",Dezember!B38)) -> 
A39: Ablaufdatum Bildungs- und Teilhabepaket (BuT) | B39: =IF(Dezember!B39="","",Dezember!B39) -> 
A40: BuT für den ganzen Monat | B40: =IF(B39="","",IF(B39>=B4,"x","")) -> 
A42: Gebührenzusammenstellung
A43: Betreuung | B43: =IF(AND(C31=0,C33=0),0,5*C32+IF(DAY(B4)>14,0.5*(Online_Gebührenberechnung!O12+IF(C33="AG",AG!G12,0)),Online_Gebührenberechnung!O12+IF(C33="AG",AG!G12,0))) -> 0
A44: Verpflegung | B44: =IF(DAY(B4)>14,IF(B38="x",(0.5*Online_Gebührenberechnung!S12)+(0.5*Grunddaten!B40),0.5*Online_Gebührenberechnung!S12),Online_Gebührenberechnung!S12) -> 0
A45: Gesamtgebühren | B45: =B43+B44 -> 0

Sheet Februar (hidden)
A1: Gebührenberechnung für die Kindertagesstätten der Stadt Göppingen
A4: Betreuungsmonat: | B4: =DATE(YEAR(Januar!B4),MONTH(Januar!B4)+1,DAY(1)) -> 2022-02-01
A5: =Bescheid!A18 -> ???
A6: Geburtsdatum des zu betreuenden Kindes | B6: =Januar!B6 -> 00:00:00
A7: U3-Zuschlag | B7: =IF(B4="","",IF(Online_Gebührenberechnung!G13>35,"","JA")) -> 
C8: auf Familienrabatt anrechenbar?
A9: Geburtsdatum Geschwisterkinder | B9: =IF(Januar!B9="","",Januar!B9) ->  | C9: =IF(B9="","",IF(DATEDIF(B9,($B$4-DAY($B$4)+1),"y")>=18,"Nein","Ja")) -> 
A10: Geburtsdatum Geschwisterkinder | B10: =IF(Januar!B10="","",Januar!B10) ->  | C10: =IF(B10="","",IF(DATEDIF(B10,($B$4-DAY($B$4)+1),"y")>=18,"Nein","Ja")) -> 
A11: Geburtsdatum Geschwisterkinder | B11: =IF(Januar!B11="","",Januar!B11) ->  | C11: =IF(B11="","",IF(DATEDIF(B11,($B$4-DAY($B$4)+1),"y")>=18,"Nein","Ja")) -> 
A12: Geburtsdatum Geschwisterkinder | B12: =IF(Januar!B12="","",Januar!B12) ->  | C12: =IF(B12="","",IF(DATEDIF(B12,($B$4-DAY($B$4)+1),"y")>=18,"Nein","Ja")) -> 
A15: Betreuungsform | B15: Umfang | C15: Kennzeichen
A16: betreute Spielgruppe für U3 | B16: bis 15 h / Woche | C16: SG
A17: Halbtagsgruppe (ab 2 Jahre bis Schuleintritt) | B17: bis 20 h / Woche | C17: HG
A18: Regelkindergarten (vormittags + nachmittags) erweiterte Regelbetreuung (5 Std. vorm. + 2 Nachmittage / Woche á 2,5 Std.) | B18: bis 30 h / Woche | C18: RG
A19: Regelkindergarten (nachmittags) | B19: bis 10 h / Woche | C19: NM
A20: Veränderte Öffnungszeiten (bis 7 Std. zusammenhängend) | B20: bis 35 h / Woche | C20: VÖ
A21: Ganztagesbetreuung (bis Schuleintritt) (über 35 h / Woche) zzgl. Verpflegung | B21: bis 8 Std. Tag | C21: GT8
B22: bis 9 Std. / Tag | C22: GT9
B23: bis 10 Std. / Tag | C23: GT10
A24: Schülerhort (Schuleintritt bis max. 14 Jahre) (im Zeitraum von 6:30 - 17:00 Uhr) zzgl. Verpflegung | B24: bis 5 Std. Tag | C24: SH5
B25: bis 6 Std. / Tag | C25: SH6
B26: bis 8 Std. Tag | C26: SH8
B27: bis 9 Std. / Tag | C27: SH9
B28: bis 10 Std. / Tag | C28: SH10
A29: Abendgruppe (17:00 - 20:00 Uhr) | B29: bis 15 h / Woche | C29: AG
A31: gewünschte Betreuungsform | C31: =IF(DAY(Januar!$B$4)=20,0,Januar!C31) -> 
A32: Zusatz Einzelstunden (5 € / Stunde) | C32: =IF(DAY(Januar!$B$4)=20,0,Januar!C32) -> 0
A33: zusätzliche Abendbetreuung gewünscht | C33: =IF(B7="JA","u3","") -> 
A36: Verpflegung
A37: Anzahl Essen pro Woche | B37: =IF(DAY(Januar!$B$4)=20,0,Januar!B37) -> 0
A38: Vesper | B38: =IF(DAY(Januar!B4)=20,"",IF(Januar!B38="","",Januar!B38)) -> 
A39: Ablaufdatum Bildungs- und Teilhabepaket (BuT) | B39: =IF(Januar!B39="","",Januar!B39) -> 
A40: BuT für den ganzen Monat | B40: =IF(B39="","",IF(B39>=B4,"x","")) -> 
A42: Gebührenzusammenstellung
A43: Betreuung | B43: =IF(AND(C31=0,C33=0),0,5*C32+IF(DAY(B4)>14,0.5*(Online_Gebührenberechnung!O13+IF(C33="AG",AG!G13,0)),Online_Gebührenberechnung!O13+IF(C33="AG",AG!G13,0))) -> 0
A44: Verpflegung | B44: =IF(DAY(B4)>14,IF(B38="x",(0.5*Online_Gebührenberechnung!S13)+(0.5*Grunddaten!B40),0.5*Online_Gebührenberechnung!S13),Online_Gebührenberechnung!S13) -> 0
A45: Gesamtgebühren | B45: =B43+B44 -> 0

Sheet März (hidden)
A1: Gebührenberechnung für die Kindertagesstätten der Stadt Göppingen
A4: Betreuungsmonat: | B4: =DATE(YEAR(Februar!B4),MONTH(Februar!B4)+1,DAY(1)) -> 2022-03-01
A5: =Bescheid!A18 -> ???
A6: Geburtsdatum des zu betreuenden Kindes | B6: =Februar!B6 -> 00:00:00
A7: U3-Zuschlag | B7: =IF(B4="","",IF(Online_Gebührenberechnung!G14>35,"","JA")) -> 
C8: auf Familienrabatt anrechenbar?
A9: Geburtsdatum Geschwisterkinder | B9: =IF(Februar!B9="","",Februar!B9) ->  | C9: =IF(B9="","",IF(DATEDIF(B9,($B$4-DAY($B$4)+1),"y")>=18,"Nein","Ja")) -> 
A10: Geburtsdatum Geschwisterkinder | B10: =IF(Februar!B10="","",Februar!B10) ->  | C10: =IF(B10="","",IF(DATEDIF(B10,($B$4-DAY($B$4)+1),"y")>=18,"Nein","Ja")) -> 
A11: Geburtsdatum Geschwisterkinder | B11: =IF(Februar!B11="","",Februar!B11) ->  | C11: =IF(B11="","",IF(DATEDIF(B11,($B$4-DAY($B$4)+1),"y")>=18,"Nein","Ja")) -> 
A12: Geburtsdatum Geschwisterkinder | B12: =IF(Februar!B12="","",Februar!B12) ->  | C12: =IF(B12="","",IF(DATEDIF(B12,($B$4-DAY($B$4)+1),"y")>=18,"Nein","Ja")) -> 
A15: Betreuungsform | B15: Umfang | C15: Kennzeichen
A16: betreute Spielgruppe für U3 | B16: bis 15 h / Woche | C16: SG
A17: Halbtagsgruppe (ab 2 Jahre bis Schuleintritt) | B17: bis 20 h / Woche | C17: HG
A18: Regelkindergarten (vormittags + nachmittags) erweiterte Regelbetreuung (5 Std. vorm. + 2 Nachmittage / Woche á 2,5 Std.) | B18: bis 30 h / Woche | C18: RG
A19: Regelkindergarten (nachmittags) | B19: bis 10 h / Woche | C19: NM
A20: Veränderte Öffnungszeiten (bis 7 Std. zusammenhängend) | B20: bis 35 h / Woche | C20: VÖ
A21: Ganztagesbetreuung (bis Schuleintritt) (über 35 h / Woche) zzgl. Verpflegung | B21: bis 8 Std. Tag | C21: GT8
B22: bis 9 Std. / Tag | C22: GT9
B23: bis 10 Std. / Tag | C23: GT10
A24: Schülerhort (Schuleintritt bis max. 14 Jahre) (im Zeitraum von 6:30 - 17:00 Uhr) zzgl. Verpflegung | B24: bis 5 Std. Tag | C24: SH5
B25: bis 6 Std. / Tag | C25: SH6
B26: bis 8 Std. Tag | C26: SH8
B27: bis 9 Std. / Tag | C27: SH9
B28: bis 10 Std. / Tag | C28: SH10
A29: Abendgruppe (17:00 - 20:00 Uhr) | B29: bis 15 h / Woche | C29: AG
A31: gewünschte Betreuungsform | C31: =IF(DAY(Februar!$B$4)=20,0,Februar!C31) -> 
A32: Zusatz Einzelstunden (5 € / Stunde) | C32: =IF(DAY(Februar!$B$4)=20,0,Februar!C32) -> 0
A33: zusätzliche Abendbetreuung gewünscht | C33: =IF(B7="JA","u3","") -> 
A36: Verpflegung
A37: Anzahl Essen pro Woche | B37: =IF(DAY(Februar!$B$4)=20,0,Februar!B37) -> 0
A38: Vesper | B38: =IF(DAY(Februar!B4)=20,"",IF(Februar!B38="","",Februar!B38)) -> 
A39: Ablaufdatum Bildungs- und Teilhabepaket (BuT) | B39: =IF(Februar!B39="","",Februar!B39) -> 
A40: BuT für den ganzen Monat | B40: =IF(B39="","",IF(B39>=B4,"x","")) -> 
A42: Gebührenzusammenstellung
A43: Betreuung | B43: =IF(AND(C31=0,C33=0),0,5*C32+IF(DAY(B4)>14,0.5*(Online_Gebührenberechnung!O14+IF(C33="AG",AG!G14,0)),Online_Gebührenberechnung!O14+IF(C33="AG",AG!G14,0))) -> 0
A44: Verpflegung | B44: =IF(DAY(B4)>14,IF(B38="x",(0.5*Online_Gebührenberechnung!S14)+(0.5*Grunddaten!B40),0.5*Online_Gebührenberechnung!S14),Online_Gebührenberechnung!S14) -> 0
A45: Gesamtgebühren | B45: =B43+B44 -> 0

Sheet April (hidden)
A1: Gebührenberechnung für die Kindertagesstätten der Stadt Göppingen
A4: Betreuungsmonat: | B4: =DATE(YEAR(März!B4),MONTH(März!B4)+1,DAY(1)) -> 2022-04-01
A5: =Bescheid!A18 -> ???
A6: Geburtsdatum des zu betreuenden Kindes | B6: =März!B6 -> 00:00:00
A7: U3-Zuschlag | B7: =IF(B4="","",IF(Online_Gebührenberechnung!G15>35,"","JA")) -> 
C8: auf Familienrabatt anrechenbar?
A9: Geburtsdatum Geschwisterkinder | B9: =IF(März!B9="","",März!B9) ->  | C9: =IF(B9="","",IF(DATEDIF(B9,($B$4-DAY($B$4)+1),"y")>=18,"Nein","Ja")) -> 
A10: Geburtsdatum Geschwisterkinder | B10: =IF(März!B10="","",März!B10) ->  | C10: =IF(B10="","",IF(DATEDIF(B10,($B$4-DAY($B$4)+1),"y")>=18,"Nein","Ja")) -> 
A11: Geburtsdatum Geschwisterkinder | B11: =IF(März!B11="","",März!B11) ->  | C11: =IF(B11="","",IF(DATEDIF(B11,($B$4-DAY($B$4)+1),"y")>=18,"Nein","Ja")) -> 
A12: Geburtsdatum Geschwisterkinder | B12: =IF(März!B12="","",März!B12) ->  | C12: =IF(B12="","",IF(DATEDIF(B12,($B$4-DAY($B$4)+1),"y")>=18,"Nein","Ja")) -> 
A15: Betreuungsform | B15: Umfang | C15: Kennzeichen
A16: betreute Spielgruppe für U3 | B16: bis 15 h / Woche | C16: SG
A17: Halbtagsgruppe (ab 2 Jahre bis Schuleintritt) | B17: bis 20 h / Woche | C17: HG
A18: Regelkindergarten (vormittags + nachmittags) erweiterte Regelbetreuung (5 Std. vorm. + 2 Nachmittage / Woche á 2,5 Std.) | B18: bis 30 h / Woche | C18: RG
A19: Regelkindergarten (nachmittags) | B19: bis 10 h / Woche | C19: NM
A20: Veränderte Öffnungszeiten (bis 7 Std. zusammenhängend) | B20: bis 35 h / Woche | C20: VÖ
A21: Ganztagesbetreuung (bis Schuleintritt) (über 35 h / Woche) zzgl. Verpflegung | B21: bis 8 Std. Tag | C21: GT8
B22: bis 9 Std. / Tag | C22: GT9
B23: bis 10 Std. / Tag | C23: GT10
A24: Schülerhort (Schuleintritt bis max. 14 Jahre) (im Zeitraum von 6:30 - 17:00 Uhr) zzgl. Verpflegung | B24: bis 5 Std. Tag | C24: SH5
B25: bis 6 Std. / Tag | C25: SH6
B26: bis 8 Std. Tag | C26: SH8
B27: bis 9 Std. / Tag | C27: SH9
B28: bis 10 Std. / Tag | C28: SH10
A29: Abendgruppe (17:00 - 20:00 Uhr) | B29: bis 15 h / Woche | C29: AG
A31: gewünschte Betreuungsform | C31: =IF(DAY(März!$B$4)=20,0,März!C31) -> 
A32: Zusatz Einzelstunden (5 € / Stunde) | C32: =IF(DAY(März!$B$4)=20,0,März!C32) -> 0
A33: zusätzliche Abendbetreuung gewünscht | C33: =IF(B7="JA","u3","") -> 
A36: Verpflegung
A37: Anzahl Essen pro Woche | B37: =IF(DAY(März!$B$4)=20,0,März!B37) -> 0
A38: Vesper | B38: =IF(DAY(März!B4)=20,"",IF(März!B38="","",März!B38)) -> 
A39: Ablaufdatum Bildungs- und Teilhabepaket (BuT) | B39: =IF(März!B39="","",März!B39) -> 
A40: BuT für den ganzen Monat | B40: =IF(B39="","",IF(B39>=B4,"x","")) -> 
A42: Gebührenzusammenstellung
A43: Betreuung | B43: =IF(AND(C31=0,C33=0),0,5*C32+IF(DAY(B4)>14,0.5*(Online_Gebührenberechnung!O15+IF(C33="AG",AG!G15,0)),Online_Gebührenberechnung!O15+IF(C33="AG",AG!G15,0))) -> 0
A44: Verpflegung | B44: =IF(DAY(B4)>14,IF(B38="x",(0.5*Online_Gebührenberechnung!S15)+(0.5*Grunddaten!B40),0.5*Online_Gebührenberechnung!S15),Online_Gebührenberechnung!S15) -> 0
A45: Gesamtgebühren | B45: =B43+B44 -> 0

Sheet Mai (hidden)
A1: Gebührenberechnung für die Kindertagesstätten der Stadt Göppingen
A4: Betreuungsmonat: | B4: =DATE(YEAR(April!B4),MONTH(April!B4)+1,DAY(1)) -> 2022-05-01
A5: =Bescheid!A18 -> ???
A6: Geburtsdatum des zu betreuenden Kindes | B6: =April!B6 -> 00:00:00
A7: U3-Zuschlag | B7: =IF(B4="","",IF(Online_Gebührenberechnung!G16>35,"","JA")) -> 
C8: auf Familienrabatt anrechenbar?
A9: Geburtsdatum Geschwisterkinder | B9: =IF(April!B9="","",April!B9) ->  | C9: =IF(B9="","",IF(DATEDIF(B9,($B$4-DAY($B$4)+1),"y")>=18,"Nein","Ja")) -> 
A10: Geburtsdatum Geschwisterkinder | B10: =IF(April!B10="","",April!B10) ->  | C10: =IF(B10="","",IF(DATEDIF(B10,($B$4-DAY($B$4)+1),"y")>=18,"Nein","Ja")) -> 
A11: Geburtsdatum Geschwisterkinder | B11: =IF(April!B11="","",April!B11) ->  | C11: =IF(B11="","",IF(DATEDIF(B11,($B$4-DAY($B$4)+1),"y")>=18,"Nein","Ja")) -> 
A12: Geburtsdatum Geschwisterkinder | B12: =IF(April!B12="","",April!B12) ->  | C12: =IF(B12="","",IF(DATEDIF(B12,($B$4-DAY($B$4)+1),"y")>=18,"Nein","Ja")) -> 
A15: Betreuungsform | B15: Umfang | C15: Kennzeichen
A16: betreute Spielgruppe für U3 | B16: bis 15 h / Woche | C16: SG
A17: Halbtagsgruppe (ab 2 Jahre bis Schuleintritt) | B17: bis 20 h / Woche | C17: HG
A18: Regelkindergarten (vormittags + nachmittags) erweiterte Regelbetreuung (5 Std. vorm. + 2 Nachmittage / Woche á 2,5 Std.) | B18: bis 30 h / Woche | C18: RG
A19: Regelkindergarten (nachmittags) | B19: bis 10 h / Woche | C19: NM
A20: Veränderte Öffnungszeiten (bis 7 Std. zusammenhängend) | B20: bis 35 h / Woche | C20: VÖ
A21: Ganztagesbetreuung (bis Schuleintritt) (über 35 h / Woche) zzgl. Verpflegung | B21: bis 8 Std. Tag | C21: GT8
B22: bis 9 Std. / Tag | C22: GT9
B23: bis 10 Std. / Tag | C23: GT10
A24: Schülerhort (Schuleintritt bis max. 14 Jahre) (im Zeitraum von 6:30 - 17:00 Uhr) zzgl. Verpflegung | B24: bis 5 Std. Tag | C24: SH5
B25: bis 6 Std. / Tag | C25: SH6
B26: bis 8 Std. Tag | C26: SH8
B27: bis 9 Std. / Tag | C27: SH9
B28: bis 10 Std. / Tag | C28: SH10
A29: Abendgruppe (17:00 - 20:00 Uhr) | B29: bis 15 h / Woche | C29: AG
A31: gewünschte Betreuungsform | C31: =IF(DAY(April!$B$4)=20,0,April!C31) -> 
A32: Zusatz Einzelstunden (5 € / Stunde) | C32: =IF(DAY(April!$B$4)=20,0,April!C32) -> 0
A33: zusätzliche Abendbetreuung gewünscht | C33: =IF(B7="JA","u3","") -> 
A36: Verpflegung
A37: Anzahl Essen pro Woche | B37: =IF(DAY(April!$B$4)=20,0,April!B37) -> 0
A38: Vesper | B38: =IF(DAY(April!B4)=20,"",IF(April!B38="","",April!B38)) -> 
A39: Ablaufdatum Bildungs- und Teilhabepaket (BuT) | B39: =IF(April!B39="","",April!B39) -> 
A40: BuT für den ganzen Monat | B40: =IF(B39="","",IF(B39>=B4,"x","")) -> 
A42: Gebührenzusammenstellung
A43: Betreuung | B43: =IF(AND(C31=0,C33=0),0,5*C32+IF(DAY(B4)>14,0.5*(Online_Gebührenberechnung!O16+IF(C33="AG",AG!G16,0)),Online_Gebührenberechnung!O16+IF(C33="AG",AG!G16,0))) -> 0
A44: Verpflegung | B44: =IF(DAY(B4)>14,IF(B38="x",(0.5*Online_Gebührenberechnung!S16)+(0.5*Grunddaten!B40),0.5*Online_Gebührenberechnung!S16),Online_Gebührenberechnung!S16) -> 0
A45: Gesamtgebühren | B45: =B43+B44 -> 0

Sheet Juni (hidden)
A1: Gebührenberechnung für die Kindertagesstätten der Stadt Göppingen
A4: Betreuungsmonat: | B4: =DATE(YEAR(Mai!B4),MONTH(Mai!B4)+1,DAY(1)) -> 2022-06-01
A5: =Bescheid!A18 -> ???
A6: Geburtsdatum des zu betreuenden Kindes | B6: =Mai!B6 -> 00:00:00
A7: U3-Zuschlag | B7: =IF(B4="","",IF(Online_Gebührenberechnung!G17>35,"","JA")) -> 
C8: auf Familienrabatt anrechenbar?
A9: Geburtsdatum Geschwisterkinder | B9: =IF(Mai!B9="","",Mai!B9) ->  | C9: =IF(B9="","",IF(DATEDIF(B9,($B$4-DAY($B$4)+1),"y")>=18,"Nein","Ja")) -> 
A10: Geburtsdatum Geschwisterkinder | B10: =IF(Mai!B10="","",Mai!B10) ->  | C10: =IF(B10="","",IF(DATEDIF(B10,($B$4-DAY($B$4)+1),"y")>=18,"Nein","Ja")) -> 
A11: Geburtsdatum Geschwisterkinder | B11: =IF(Mai!B11="","",Mai!B11) ->  | C11: =IF(B11="","",IF(DATEDIF(B11,($B$4-DAY($B$4)+1),"y")>=18,"Nein","Ja")) -> 
A12: Geburtsdatum Geschwisterkinder | B12: =IF(Mai!B12="","",Mai!B12) ->  | C12: =IF(B12="","",IF(DATEDIF(B12,($B$4-DAY($B$4)+1),"y")>=18,"Nein","Ja")) -> 
A15: Betreuungsform | B15: Umfang | C15: Kennzeichen
A16: betreute Spielgruppe für U3 | B16: bis 15 h / Woche | C16: SG
A17: Halbtagsgruppe (ab 2 Jahre bis Schuleintritt) | B17: bis 20 h / Woche | C17: HG
A18: Regelkindergarten (vormittags + nachmittags) erweiterte Regelbetreuung (5 Std. vorm. + 2 Nachmittage / Woche á 2,5 Std.) | B18: bis 30 h / Woche | C18: RG
A19: Regelkindergarten (nachmittags) | B19: bis 10 h / Woche | C19: NM
A20: Veränderte Öffnungszeiten (bis 7 Std. zusammenhängend) | B20: bis 35 h / Woche | C20: VÖ
A21: Ganztagesbetreuung (bis Schuleintritt) (über 35 h / Woche) zzgl. Verpflegung | B21: bis 8 Std. Tag | C21: GT8
B22: bis 9 Std. / Tag | C22: GT9
B23: bis 10 Std. / Tag | C23: GT10
A24: Schülerhort (Schuleintritt bis max. 14 Jahre) (im Zeitraum von 6:30 - 17:00 Uhr) zzgl. Verpflegung | B24: bis 5 Std. Tag | C24: SH5
B25: bis 6 Std. / Tag | C25: SH6
B26: bis 8 Std. Tag | C26: SH8
B27: bis 9 Std. / Tag | C27: SH9
B28: bis 10 Std. / Tag | C28: SH10
A29: Abendgruppe (17:00 - 20:00 Uhr) | B29: bis 15 h / Woche | C29: AG
A31: gewünschte Betreuungsform | C31: =IF(DAY(Mai!$B$4)=20,0,Mai!C31) -> 
A32: Zusatz Einzelstunden (5 € / Stunde) | C32: =IF(DAY(Mai!$B$4)=20,0,Mai!C32) -> 0
A33: zusätzliche Abendbetreuung gewünscht | C33: =IF(B7="JA","u3","") -> 
A36: Verpflegung
A37: Anzahl Essen pro Woche | B37: =IF(DAY(Mai!B4)=20,"",IF(DAY(Mai!$B$4)=20,0,Mai!B37)) -> 0
A38: Vesper | B38: =IF(Mai!B38="","",Mai!B38) -> 
A39: Ablaufdatum Bildungs- und Teilhabepaket (BuT) | B39: =IF(Mai!B39="","",Mai!B39) -> 
A40: BuT für den ganzen Monat | B40: =IF(B39="","",IF(B39>=B4,"x","")) -> 
A42: Gebührenzusammenstellung
A43: Betreuung | B43: =IF(AND(C31=0,C33=0),0,5*C32+IF(DAY(B4)>14,0.5*(Online_Gebührenberechnung!O17+IF(C33="AG",AG!G17,0)),Online_Gebührenberechnung!O17+IF(C33="AG",AG!G17,0))) -> 0
A44: Verpflegung | B44: =IF(DAY(B4)>14,IF(B38="x",(0.5*Online_Gebührenberechnung!S17)+(0.5*Grunddaten!B40),0.5*Online_Gebührenberechnung!S17),Online_Gebührenberechnung!S17) -> 0
A45: Gesamtgebühren | B45: =B43+B44 -> 0

Sheet Juli (hidden)
A1: Gebührenberechnung für die Kindertagesstätten der Stadt Göppingen
A4: Betreuungsmonat: | B4: =DATE(YEAR(Juni!B4),MONTH(Juni!B4)+1,DAY(1)) -> 2022-07-01
A5: =Bescheid!A18 -> ???
A6: Geburtsdatum des zu betreuenden Kindes | B6: =Juni!B6 -> 00:00:00
A7: U3-Zuschlag | B7: =IF(B4="","",IF(Online_Gebührenberechnung!G18>35,"","JA")) -> 
C8: auf Familienrabatt anrechenbar?
A9: Geburtsdatum Geschwisterkinder | B9: =IF(Juni!B9="","",Juni!B9) ->  | C9: =IF(B9="","",IF(DATEDIF(B9,($B$4-DAY($B$4)+1),"y")>=18,"Nein","Ja")) -> 
A10: Geburtsdatum Geschwisterkinder | B10: =IF(Juni!B10="","",Juni!B10) ->  | C10: =IF(B10="","",IF(DATEDIF(B10,($B$4-DAY($B$4)+1),"y")>=18,"Nein","Ja")) -> 
A11: Geburtsdatum Geschwisterkinder | B11: =IF(Juni!B11="","",Juni!B11) ->  | C11: =IF(B11="","",IF(DATEDIF(B11,($B$4-DAY($B$4)+1),"y")>=18,"Nein","Ja")) -> 
A12: Geburtsdatum Geschwisterkinder | B12: =IF(Juni!B12="","",Juni!B12) ->  | C12: =IF(B12="","",IF(DATEDIF(B12,($B$4-DAY($B$4)+1),"y")>=18,"Nein","Ja")) -> 
A15: Betreuungsform | B15: Umfang | C15: Kennzeichen
A16: betreute Spielgruppe für U3 | B16: bis 15 h / Woche | C16: SG
A17: Halbtagsgruppe (ab 2 Jahre bis Schuleintritt) | B17: bis 20 h / Woche | C17: HG
A18: Regelkindergarten (vormittags + nachmittags) erweiterte Regelbetreuung (5 Std. vorm. + 2 Nachmittage / Woche á 2,5 Std.) | B18: bis 30 h / Woche | C18: RG
A19: Regelkindergarten (nachmittags) | B19: bis 10 h / Woche | C19: NM
A20: Veränderte Öffnungszeiten (bis 7 Std. zusammenhängend) | B20: bis 35 h / Woche | C20: VÖ
A21: Ganztagesbetreuung (bis Schuleintritt) (über 35 h / Woche) zzgl. Verpflegung | B21: bis 8 Std. Tag | C21: GT8
B22: bis 9 Std. / Tag | C22: GT9
B23: bis 10 Std. / Tag | C23: GT10
A24: Schülerhort (Schuleintritt bis max. 14 Jahre) (im Zeitraum von 6:30 - 17:00 Uhr) zzgl. Verpflegung | B24: bis 5 Std. Tag | C24: SH5
B25: bis 6 Std. / Tag | C25: SH6
B26: bis 8 Std. Tag | C26: SH8
B27: bis 9 Std. / Tag | C27: SH9
B28: bis 10 Std. / Tag | C28: SH10
A29: Abendgruppe (17:00 - 20:00 Uhr) | B29: bis 15 h / Woche | C29: AG
A31: gewünschte Betreuungsform | C31: =IF(DAY(Juni!$B$4)=20,0,Juni!C31) -> 
A32: Zusatz Einzelstunden (5 € / Stunde) | C32: =IF(DAY(Juni!$B$4)=20,0,Juni!C32) -> 0
A33: zusätzliche Abendbetreuung gewünscht | C33: =IF(B7="JA","u3","") -> 
A36: Verpflegung
A37: Anzahl Essen pro Woche | B37: =IF(DAY(Juni!$B$4)=20,0,Juni!B37) -> 0
A38: Vesper | B38: =IF(DAY(Juni!B4)=20,"",IF(Juni!B38="","",Juni!B38)) -> 
A39: Ablaufdatum Bildungs- und Teilhabepaket (BuT) | B39: =IF(Juni!B39="","",Juni!B39) -> 
A40: BuT für den ganzen Monat | B40: =IF(B39="","",IF(B39>=B4,"x","")) -> 
A42: Gebührenzusammenstellung
A43: Betreuung | B43: =IF(AND(C31=0,C33=0),0,5*C32+IF(DAY(B4)>14,0.5*(Online_Gebührenberechnung!O18+IF(C33="AG",AG!G18,0)),Online_Gebührenberechnung!O18+IF(C33="AG",AG!G18,0))) -> 0
A44: Verpflegung | B44: =IF(DAY(B4)>14,IF(B38="x",(0.5*Online_Gebührenberechnung!S18)+(0.5*Grunddaten!B40),0.5*Online_Gebührenberechnung!S18),Online_Gebührenberechnung!S18) -> 0
A45: Gesamtgebühren | B45: =B43+B44 -> 0

Sheet August (hidden)
A1: Gebührenberechnung für die Kindertagesstätten der Stadt Göppingen
A4: Betreuungsmonat: | B4: =DATE(YEAR(Juli!B4),MONTH(Juli!B4)+1,DAY(1)) -> 2022-08-01
A5: =Bescheid!A18 -> ???
A6: Geburtsdatum des zu betreuenden Kindes | B6: =Juli!B6 -> 00:00:00
A7: U3-Zuschlag | B7: =IF(B4="","",IF(Online_Gebührenberechnung!G19>35,"","JA")) -> 
C8: auf Familienrabatt anrechenbar?
A9: Geburtsdatum Geschwisterkinder | B9: =IF(Juli!B9="","",Juli!B9) ->  | C9: =IF(B9="","",IF(DATEDIF(B9,($B$4-DAY($B$4)+1),"y")>=18,"Nein","Ja")) -> 
A10: Geburtsdatum Geschwisterkinder | B10: =IF(Juli!B10="","",Juli!B10) ->  | C10: =IF(B10="","",IF(DATEDIF(B10,($B$4-DAY($B$4)+1),"y")>=18,"Nein","Ja")) -> 
A11: Geburtsdatum Geschwisterkinder | B11: =IF(Juli!B11="","",Juli!B11) ->  | C11: =IF(B11="","",IF(DATEDIF(B11,($B$4-DAY($B$4)+1),"y")>=18,"Nein","Ja")) -> 
A12: Geburtsdatum Geschwisterkinder | B12: =IF(Juli!B12="","",Juli!B12) ->  | C12: =IF(B12="","",IF(DATEDIF(B12,($B$4-DAY($B$4)+1),"y")>=18,"Nein","Ja")) -> 
A15: Betreuungsform | B15: Umfang | C15: Kennzeichen
A16: betreute Spielgruppe für U3 | B16: bis 15 h / Woche | C16: SG
A17: Halbtagsgruppe (ab 2 Jahre bis Schuleintritt) | B17: bis 20 h / Woche | C17: HG
A18: Regelkindergarten (vormittags + nachmittags) erweiterte Regelbetreuung (5 Std. vorm. + 2 Nachmittage / Woche á 2,5 Std.) | B18: bis 30 h / Woche | C18: RG
A19: Regelkindergarten (nachmittags) | B19: bis 10 h / Woche | C19: NM
A20: Veränderte Öffnungszeiten (bis 7 Std. zusammenhängend) | B20: bis 35 h / Woche | C20: VÖ
A21: Ganztagesbetreuung (bis Schuleintritt) (über 35 h / Woche) zzgl. Verpflegung | B21: bis 8 Std. Tag | C21: GT8
B22: bis 9 Std. / Tag | C22: GT9
B23: bis 10 Std. / Tag | C23: GT10
A24: Schülerhort (Schuleintritt bis max. 14 Jahre) (im Zeitraum von 6:30 - 17:00 Uhr) zzgl. Verpflegung | B24: bis 5 Std. Tag | C24: SH5
B25: bis 6 Std. / Tag | C25: SH6
B26: bis 8 Std. Tag | C26: SH8
B27: bis 9 Std. / Tag | C27: SH9
B28: bis 10 Std. / Tag | C28: SH10
A29: Abendgruppe (17:00 - 20:00 Uhr) | B29: bis 15 h / Woche | C29: AG
A31: gewünschte Betreuungsform | C31: =IF(DAY(Juli!$B$4)=20,0,Juli!C31) -> 
A32: Zusatz Einzelstunden (5 € / Stunde) | C32: =IF(DAY(Juli!$B$4)=20,0,Juli!C32) -> 0
A33: zusätzliche Abendbetreuung gewünscht | C33: =IF(B7="JA","u3","") -> 
A36: Verpflegung
A37: Anzahl Essen pro Woche | B37: =IF(DAY(Juli!$B$4)=20,0,Juli!B37) -> 0
A38: Vesper | B38: =IF(DAY(Juli!B4)=20,"",IF(Juli!B38="","",Juli!B38)) -> 
A39: Ablaufdatum Bildungs- und Teilhabepaket (BuT) | B39: =IF(Juli!B39="","",Juli!B39) -> 
A40: BuT für den ganzen Monat | B40: =IF(B39="","",IF(B39>=B4,"x","")) -> 
A42: Gebührenzusammenstellung
A43: Betreuung | B43: =IF(AND(C31=0,C33=0),0,5*C32+IF(DAY(B4)>14,0.5*(Online_Gebührenberechnung!O19+IF(C33="AG",AG!G19,0)),Online_Gebührenberechnung!O19+IF(C33="AG",AG!G19,0))) -> 0
A44: Verpflegung | B44: =IF(DAY(B4)>14,IF(B38="x",(0.5*Online_Gebührenberechnung!S19)+(0.5*Grunddaten!B40),0.5*Online_Gebührenberechnung!S19),Online_Gebührenberechnung!S19) -> 0
A45: Gesamtgebühren | B45: =B43+B44 -> 0

Sheet Endabrechung (hidden)
A1: Stadt Göppingen
A2: Referat Kinder und Jugend
A3: Pfarrstraße 11
A4: 73033 Göppingen
A8: =Bescheid!A8 -> Herrn / Frau
A9: =Bescheid!A9 -> Vorname / Name
A10: =Bescheid!A10 -> Straße
A11: =Bescheid!A11 -> PLZ Wohnort | G11: =TODAY() -> 2022-01-31
C14: endgültiger Gebührenbescheid für die Zeit von
B15: =DATE(YEAR(September!B4),MONTH(September!B4),DAY(1)) -> 2021-09-01 | C15: bis | D15: =DATE(YEAR(August!B4),MONTH(August!B4),DAY(31)) -> 2022-08-31
A17: Für die Betreuung und Verpflegung des Kindes
A18: =Bescheid!A18 -> ??? | C18: geboren am | D18: =August!B6 -> 00:00:00
A19: in der städtischen Kindertagesstätte | D19: =Bescheid!C19 -> (Name der Kita)
A20: werden nach der Satzung über die Erhebung von Gebühren für die Benutzung von Kindertageseinrichtungen der Stadt Göppingen in der Fassung vom 29.04.2010 folgende Gebühren festgesetzt.
A22: für den Monat | B22: Betreuung Soll | C22: Verpfleg-ung Soll | D22: Betreuung Ist | E22: Verpfleg-ung Ist | F22: Differenz Betreu-ung | G22: Differenz Verpfleg-ung | H22: Erstattung / Nachzahl-ung
A23: =B15 -> 2021-09-01 | B23: =September!B43 -> 0 | C23: =September!B44 -> 0 | F23: =D23-B23 -> 0 | G23: =E23-C23 -> 0 | H23: =G23+F23 -> 0
A24: =DATE(YEAR(A23),MONTH(A23)+1,DAY(1)) -> 2021-10-01 | B24: =Oktober!B43 -> 0 | C24: =Oktober!B44 -> 0 | F24: =D24-B24 -> 0 | G24: =E24-C24 -> 0 | H24: =G24+F24 -> 0
A25: =DATE(YEAR(A24),MONTH(A24)+1,DAY(1)) -> 2021-11-01 | B25: =November!B43 -> 0 | C25: =November!B44 -> 0 | F25: 0 | G25: 0 | H25: 0
A26: 2021-12-01 | B26: =Dezember!B43 -> 0 | C26: =Dezember!B44 -> 0 | F26: 0 | G26: 0 | H26: 0
A27: 2022-01-01 | B27: =Januar!B43 -> 0 | C27: =Januar!B44 -> 0 | F27: 0 | G27: 0 | H27: 0
A28: 2022-02-01 | B28: =Februar!B43 -> 0 | C28: =Februar!B44 -> 0 | F28: 0 | G28: 0 | H28: 0
A29: 2022-03-01 | B29: =März!B43 -> 0 | C29: =März!B44 -> 0 | F29: 0 | G29: 0 | H29: 0
A30: 2022-04-01 | B30: =April!B43 -> 0 | C30: =April!B44 -> 0 | F30: 0 | G30: 0 | H30: 0
A31: 2022-05-01 | B31: =Mai!B43 -> 0 | C31: =Mai!B44 -> 0 | F31: 0 | G31: 0 | H31: 0
A32: 2022-06-01 | B32: =Juni!B43 -> 0 | C32: =Juni!B44 -> 0 | F32: 0 | G32: 0 | H32: 0
A33: 2022-07-01 | B33: =Juli!B43 -> 0 | C33: =Juli!B44 -> 0 | F33: 0 | G33: 0 | H33: 0
A34: 2022-08-01 | B34: =August!B43 -> 0 | C34: =August!B44 -> 0 | F34: 0 | G34: 0 | H34: 0
B35: =SUM(B23:B34) -> 0 | C35: 0 | D35: 0 | E35: 0 | F35: 0 | G35: 0 | H35: 0
A37: Bitte überweisen Sie den Nachzahlungsbetrag innerhalb eines Monats nach Rechnungsstellung unter der PK-Nummer
A38: =Bescheid!A38 -> Eingabe der PK-Nummer | C38: auf das Konto 110 bei der KSK Göppingen (BLZ 610 500 00) bzw. BIC: GOPSDE6GXXX;
A39: IBAN: DE26610500000000000110. Sofern Sie uns eine Abbuchungsermächtigung erteilt haben, werden wir die Beträge
A40: zum Fälligkeitstag abbuchen. Ein Guthaben werden wir umgehend auf die uns bekannte Bankverbindung erstatten.
A42: Rechtsbehelfsbelehrung:
A43: Gegen diesen Bescheid können Sie binnen eines Monats nach Zugang Widerspruch einlegen. Der Widerspruch ist schriftlich oder zur Niederschrift bei der Stadt Göppingen - Referat Kinder und Jugend - Pfarrstraße 11 in 73033 Göppingen einzulegen. Die Frist ist auch gewahrt, wenn der Widerspruch in diesem Zeitraum bei einer anderen Dienststelle der Stadt Göppingen eingeht.
A45: Mit freundlichen Grüßen
A47: Stadtverwaltung Göppingen
A48: Referat Kinder und Jugend
A50: Rückfragen zur Betreuung: | C50: in der jeweiligen Kita
A51: Rückfragen zur Gebührenveranlagung: | C51: Frau Ayerle, Ref. Kinder + Jugend, Tel.: 07161 650-442
A52: Rückfragen zum Zahlungseingang: | C52: Herr Keller, Stadtkasse, Tel.: 07161 650-533

Sheet Hinweise
A1: Verfahrenshinweise:
A3: Tabellenblatt Bescheid:
A4: auszufüllen sind:
A5: Adressfeld der Zahlungspflichtigen (Felder A8 bis A 11)
A6: Vorname des Kindes (Feld A18)
A7: Name der Kita (Feld C19)
A8: PK-Nummer (Feld C38)
A10: Tabellenblatt September:
A11: Eingabe des Geburtsdatums des zu betreuenden Kindes (Feld B6)
A13: Tabellenblätter September - August
A14: Allgemein:
A15: Die grün hinterlegten Felder sind geschützt. Sie können und sollen nicht verändert werden.
A17: Eintragungen werden automatisch in die Folgemonate übertragen.
A19: Bei Änderungen in den Folgemonaten, werden in diesem Feld die hinterlegten Formeln überschrieben.
A20: Diese Formeln sind nicht wieder herstellbar. Sollten Sie eine Formel versehentlich verändert oder gelöscht haben, öffnen Sie bitte eine neue Tabelle und beginnen mit der Eingabe nochmals von vorn.
A22: Bei Austritten zum Monatsende bitte in der Betreuungsform des Folgemonates ein "Hochkomma" (Feststelltaste + #) eingeben.
A24: Der Betreuungsmonat und die Geburtsdaten der Kinder sind im Format TT.MM.JJ oder TT.MM.JJJJ einzugeben (unabhängig von der Anzeige).
A26: Die Eigenschaft U3 oder Kinder in der Familie (Eintritt der Volljährigkeit) und Bildungs- und Teilhabepaket wird automatisch berechnet und das Ergebnis mit "ja / nein" bzw. mit "x" vermekt.
A28: Besondere Hinweise:
A30: Die Geburtsdaten von vorhandenen Geschwisterkindern können im Tabellenblatt September oder im Tabellenblatt des Betreuungsbeginns eingetragen werden.
A31: Neu geborene Kinder bitte erst im Geburtsmonat aufnehmen (für Neuberechnung).
A33: Die Betreuungsform kann aus dem Pull-down-Menü ausgewählt oder direkt eingegeben werden.
A34: Im Voraus gebuchte Einzelstunden, dürften die Ausnahme sein, da bei zusätzlichem Betreuungsbedarf andere Betreuungsformen günstiger sein werden.
A35: Hier ist die Beratung der Eltern durch die Einrichtungen gefragt.
A37: Vesper kann mit einem "x" markiert werden.
A39: An- bzw. Abmedlung zum 15. eines Monats:
A40: Bei Anmeldungen zum 15. eines Monats geben Sie bitte im Feld "Betreuungsmonat" den "15." als Tag ein.
A41: Die Folgemonate werden dann zu 100 % berechnet.
A43: Bei Abmeldungen zum 15. eines Monats geben Sie bitte im Feld "Betreuungsmonat" den "20." als Tag ein.
A44: Die Folgemonate werden dann auf null gesetzt.
A46: Bildungs- und Teilhabepaket
A47: Die Leistungen des BuT werden in der neuen Berechnung nur noch monatsweise berücksichtigt (die bisherige taggenaue Abrechnung entfällt).
A48: Ist die Famile im Berechnungsmonat an einem Tag Leistungsempfänger des BuT wird der ermäßigte Betrag auf das Essen gewährt.
A50: Einzelstunden und Einzelessen:
A51: Einzelstunden (5 € / Stunde) und Einzelessen (3,80 € / Essen) werden in der Einrichtung möglichst zeitnah direkt kassiert und mit der Handvorschusskasse abgerechnet.
A53: Bescheiderstellung:
A54: Datei unter Namen des Kindes speichern (nach Vorgabe Frau Principe).
A55: Bei Änderungen der Betreuungssituation diese Datei öffen, bearbeiten und unter einer fortlaufenden Nummer (zusätzlich) speichern (nach Vorgabe Frau Principe).
A56: 1 Papier-Fertigung des Bescheids für die Erziehungsberechtigten / Zahlungspflichtigen. Diese dient auch zur Beantragung eines Zuschusses beim Kreisjugendamt.
A57: 1 Kopie der Datei an Frau Ayerle per Mail (kayerle@goeppingen.de) senden.
A59: Gründe für Änderungen:
A60: * Geburt (oder auch Tod) eines Geschwisterkindes.
A61: * Erhalt oder Verlängerung des Bildungs- und Teilhabepakets

Sheet AG (hidden)
L1: =SUM(L8:L35) -> 0 | N1: =SUM(N8:N35) -> 0
A3: Abendgruppe
A7: Lfd. Nummer | B7: Neuaufnahme / Abmeldung | C7: Namen | D7: Kind / Fam. | E7: Betreuungsform | F7: U3 | G7: Grundbetrag Stunde | H7: Stunden Woche 1 | I7: Stunden Woche 2 | J7: Stunden Woche 3 | K7: Stunden Woche 4 | L7: Abendbetreuung | M7: Vesper | N7: Abendbetreuung insgesamt | O7: Anmerkungen
A8: 1 | D8: =(COUNTIF(September!C$9:C$12,"Ja"))+1 -> 1 | E8: ag | F8: =IF(September!B$7="JA","x","") ->  | G8: =IF(D8="",0,IF(F8="x",(INDEX(Grunddaten!$B$9:$E$21,MATCH(E8,Grunddaten!$A$9:$A$21,0),MATCH(D8,Grunddaten!$B$8:$E$8,0))*Grunddaten!$B$29),INDEX(Grunddaten!$B$9:$E$21,MATCH(E8,Grunddaten!$A$9:$A$21,0),MATCH(D8,Grunddaten!$B$8:$E$8,0)))) -> 32 | L8: =G8*SUM(H8:K8) -> 0 | N8: =IF(M8="x",G8*SUM(H8:K8)+Grunddaten!$B$40,G8*SUM(H8:K8)) -> 0
A9: 2 | D9: =(COUNTIF(Oktober!C$9:C$12,"Ja"))+1 -> 1 | E9: ag | F9: =IF(Oktober!B$7="JA","x","") ->  | G9: =IF(D9="",0,IF(F9="x",(INDEX(Grunddaten!$B$9:$E$21,MATCH(E9,Grunddaten!$A$9:$A$21,0),MATCH(D9,Grunddaten!$B$8:$E$8,0))*Grunddaten!$B$29),INDEX(Grunddaten!$B$9:$E$21,MATCH(E9,Grunddaten!$A$9:$A$21,0),MATCH(D9,Grunddaten!$B$8:$E$8,0)))) -> 32 | L9: =G9*SUM(H9:K9) -> 0 | N9: =IF(M9="x",G9*SUM(H9:K9)+Grunddaten!$B$40,G9*SUM(H9:K9)) -> 0
A10: 3 | D10: =(COUNTIF(November!C$9:C$12,"Ja"))+1 -> 1 | E10: ag | F10: =IF(November!B$7="JA","x","") ->  | G10: =IF(D10="",0,IF(F10="x",(INDEX(Grunddaten!$B$9:$E$21,MATCH(E10,Grunddaten!$A$9:$A$21,0),MATCH(D10,Grunddaten!$B$8:$E$8,0))*Grunddaten!$B$29),INDEX(Grunddaten!$B$9:$E$21,MATCH(E10,Grunddaten!$A$9:$A$21,0),MATCH(D10,Grunddaten!$B$8:$E$8,0)))) -> 32 | L10: 0 | N10: =IF(M10="x",G10*SUM(H10:K10)+Grunddaten!$B$40,G10*SUM(H10:K10)) -> 0
A11: 4 | D11: =(COUNTIF(Dezember!C$9:C$12,"Ja"))+1 -> 1 | E11: ag | F11: =IF(Dezember!B$7="JA","x","") ->  | G11: =IF(D11="",0,IF(F11="x",(INDEX(Grunddaten!$B$9:$E$21,MATCH(E11,Grunddaten!$A$9:$A$21,0),MATCH(D11,Grunddaten!$B$8:$E$8,0))*Grunddaten!$B$29),INDEX(Grunddaten!$B$9:$E$21,MATCH(E11,Grunddaten!$A$9:$A$21,0),MATCH(D11,Grunddaten!$B$8:$E$8,0)))) -> 32 | L11: 0 | N11: =IF(M11="x",G11*SUM(H11:K11)+Grunddaten!$B$40,G11*SUM(H11:K11)) -> 0
A12: 5 | D12: =(COUNTIF(Januar!C$9:C$12,"Ja"))+1 -> 1 | E12: ag | F12: =IF(Januar!B$7="JA","x","") ->  | G12: =IF(D12="",0,IF(F12="x",(INDEX(Grunddaten!$B$9:$E$21,MATCH(E12,Grunddaten!$A$9:$A$21,0),MATCH(D12,Grunddaten!$B$8:$E$8,0))*Grunddaten!$B$29),INDEX(Grunddaten!$B$9:$E$21,MATCH(E12,Grunddaten!$A$9:$A$21,0),MATCH(D12,Grunddaten!$B$8:$E$8,0)))) -> 32 | L12: 0 | N12: =IF(M12="x",G12*SUM(H12:K12)+Grunddaten!$B$40,G12*SUM(H12:K12)) -> 0
A13: 6 | D13: =(COUNTIF(Februar!C$9:C$12,"Ja"))+1 -> 1 | E13: ag | F13: =IF(Februar!B$7="JA","x","") ->  | G13: =IF(D13="",0,IF(F13="x",(INDEX(Grunddaten!$B$9:$E$21,MATCH(E13,Grunddaten!$A$9:$A$21,0),MATCH(D13,Grunddaten!$B$8:$E$8,0))*Grunddaten!$B$29),INDEX(Grunddaten!$B$9:$E$21,MATCH(E13,Grunddaten!$A$9:$A$21,0),MATCH(D13,Grunddaten!$B$8:$E$8,0)))) -> 32 | L13: 0 | N13: =IF(M13="x",G13*SUM(H13:K13)+Grunddaten!$B$40,G13*SUM(H13:K13)) -> 0
A14: 7 | D14: =(COUNTIF(März!C$9:C$12,"Ja"))+1 -> 1 | E14: ag | F14: =IF(März!B$7="JA","x","") ->  | G14: =IF(D14="",0,IF(F14="x",(INDEX(Grunddaten!$B$9:$E$21,MATCH(E14,Grunddaten!$A$9:$A$21,0),MATCH(D14,Grunddaten!$B$8:$E$8,0))*Grunddaten!$B$29),INDEX(Grunddaten!$B$9:$E$21,MATCH(E14,Grunddaten!$A$9:$A$21,0),MATCH(D14,Grunddaten!$B$8:$E$8,0)))) -> 32 | L14: 0 | N14: =IF(M14="x",G14*SUM(H14:K14)+Grunddaten!$B$40,G14*SUM(H14:K14)) -> 0
A15: 8 | D15: =(COUNTIF(April!C$9:C$12,"Ja"))+1 -> 1 | E15: ag | F15: =IF(April!B$7="JA","x","") ->  | G15: =IF(D15="",0,IF(F15="x",(INDEX(Grunddaten!$B$9:$E$21,MATCH(E15,Grunddaten!$A$9:$A$21,0),MATCH(D15,Grunddaten!$B$8:$E$8,0))*Grunddaten!$B$29),INDEX(Grunddaten!$B$9:$E$21,MATCH(E15,Grunddaten!$A$9:$A$21,0),MATCH(D15,Grunddaten!$B$8:$E$8,0)))) -> 32 | L15: 0 | N15: =IF(M15="x",G15*SUM(H15:K15)+Grunddaten!$B$40,G15*SUM(H15:K15)) -> 0
A16: 9 | D16: =(COUNTIF(Mai!C$9:C$12,"Ja"))+1 -> 1 | E16: ag | F16: =IF(Mai!B$7="JA","x","") ->  | G16: =IF(D16="",0,IF(F16="x",(INDEX(Grunddaten!$B$9:$E$21,MATCH(E16,Grunddaten!$A$9:$A$21,0),MATCH(D16,Grunddaten!$B$8:$E$8,0))*Grunddaten!$B$29),INDEX(Grunddaten!$B$9:$E$21,MATCH(E16,Grunddaten!$A$9:$A$21,0),MATCH(D16,Grunddaten!$B$8:$E$8,0)))) -> 32 | L16: 0 | N16: =IF(M16="x",G16*SUM(H16:K16)+Grunddaten!$B$40,G16*SUM(H16:K16)) -> 0
A17: 10 | D17: =(COUNTIF(Juni!C$9:C$12,"Ja"))+1 -> 1 | E17: ag | F17: =IF(Juni!B$7="JA","x","") ->  | G17: =IF(D17="",0,IF(F17="x",(INDEX(Grunddaten!$B$9:$E$21,MATCH(E17,Grunddaten!$A$9:$A$21,0),MATCH(D17,Grunddaten!$B$8:$E$8,0))*Grunddaten!$B$29),INDEX(Grunddaten!$B$9:$E$21,MATCH(E17,Grunddaten!$A$9:$A$21,0),MATCH(D17,Grunddaten!$B$8:$E$8,0)))) -> 32 | L17: 0 | N17: =IF(M17="x",G17*SUM(H17:K17)+Grunddaten!$B$40,G17*SUM(H17:K17)) -> 0
A18: 11 | D18: =(COUNTIF(Juli!C$9:C$12,"Ja"))+1 -> 1 | E18: ag | F18: =IF(Juli!B$7="JA","x","") ->  | G18: =IF(D18="",0,IF(F18="x",(INDEX(Grunddaten!$B$9:$E$21,MATCH(E18,Grunddaten!$A$9:$A$21,0),MATCH(D18,Grunddaten!$B$8:$E$8,0))*Grunddaten!$B$29),INDEX(Grunddaten!$B$9:$E$21,MATCH(E18,Grunddaten!$A$9:$A$21,0),MATCH(D18,Grunddaten!$B$8:$E$8,0)))) -> 32 | L18: 0 | N18: =IF(M18="x",G18*SUM(H18:K18)+Grunddaten!$B$40,G18*SUM(H18:K18)) -> 0
A19: 12 | D19: =(COUNTIF(August!C$9:C$12,"Ja"))+1 -> 1 | E19: ag | F19: =IF(August!B$7="JA","x","") ->  | G19: =IF(D19="",0,IF(F19="x",(INDEX(Grunddaten!$B$9:$E$21,MATCH(E19,Grunddaten!$A$9:$A$21,0),MATCH(D19,Grunddaten!$B$8:$E$8,0))*Grunddaten!$B$29),INDEX(Grunddaten!$B$9:$E$21,MATCH(E19,Grunddaten!$A$9:$A$21,0),MATCH(D19,Grunddaten!$B$8:$E$8,0)))) -> 32 | L19: 0 | N19: =IF(M19="x",G19*SUM(H19:K19)+Grunddaten!$B$40,G19*SUM(H19:K19)) -> 0
A20: 13 | E20: ag | G20: =IF(D20="",0,IF(F20="x",(INDEX(#REF!,MATCH(E20,#REF!,0),MATCH(D20,#REF!,0))*#REF!),INDEX(#REF!,MATCH(E20,#REF!,0),MATCH(D20,#REF!,0)))) -> 0 | L20: =G20*SUM(H20:K20) -> 0 | N20: =IF(M20="x",G20*SUM(H20:K20)+Grunddaten!$B$40,G20*SUM(H20:K20)) -> 0
A21: 14 | E21: ag | G21: =IF(D21="",0,IF(F21="x",(INDEX(#REF!,MATCH(E21,#REF!,0),MATCH(D21,#REF!,0))*#REF!),INDEX(#REF!,MATCH(E21,#REF!,0),MATCH(D21,#REF!,0)))) -> 0 | L21: 0 | N21: =IF(M21="x",G21*SUM(H21:K21)+Grunddaten!$B$40,G21*SUM(H21:K21)) -> 0
A22: 15 | E22: ag | G22: =IF(D22="",0,IF(F22="x",(INDEX(#REF!,MATCH(E22,#REF!,0),MATCH(D22,#REF!,0))*#REF!),INDEX(#REF!,MATCH(E22,#REF!,0),MATCH(D22,#REF!,0)))) -> 0 | L22: 0 | N22: =IF(M22="x",G22*SUM(H22:K22)+Grunddaten!$B$40,G22*SUM(H22:K22)) -> 0
A23: 16 | E23: ag | G23: =IF(D23="",0,IF(F23="x",(INDEX(#REF!,MATCH(E23,#REF!,0),MATCH(D23,#REF!,0))*#REF!),INDEX(#REF!,MATCH(E23,#REF!,0),MATCH(D23,#REF!,0)))) -> 0 | L23: 0 | N23: =IF(M23="x",G23*SUM(H23:K23)+Grunddaten!$B$40,G23*SUM(H23:K23)) -> 0
A24: 17 | E24: ag | G24: =IF(D24="",0,IF(F24="x",(INDEX(#REF!,MATCH(E24,#REF!,0),MATCH(D24,#REF!,0))*#REF!),INDEX(#REF!,MATCH(E24,#REF!,0),MATCH(D24,#REF!,0)))) -> 0 | L24: 0 | N24: =IF(M24="x",G24*SUM(H24:K24)+Grunddaten!$B$40,G24*SUM(H24:K24)) -> 0
A25: 18 | E25: ag | G25: =IF(D25="",0,IF(F25="x",(INDEX(#REF!,MATCH(E25,#REF!,0),MATCH(D25,#REF!,0))*#REF!),INDEX(#REF!,MATCH(E25,#REF!,0),MATCH(D25,#REF!,0)))) -> 0 | L25: 0 | N25: =IF(M25="x",G25*SUM(H25:K25)+Grunddaten!$B$40,G25*SUM(H25:K25)) -> 0
A26: 19 | E26: ag | G26: =IF(D26="",0,IF(F26="x",(INDEX(#REF!,MATCH(E26,#REF!,0),MATCH(D26,#REF!,0))*#REF!),INDEX(#REF!,MATCH(E26,#REF!,0),MATCH(D26,#REF!,0)))) -> 0 | L26: 0 | N26: =IF(M26="x",G26*SUM(H26:K26)+Grunddaten!$B$40,G26*SUM(H26:K26)) -> 0
A27: 20 | E27: ag | G27: =IF(D27="",0,IF(F27="x",(INDEX(#REF!,MATCH(E27,#REF!,0),MATCH(D27,#REF!,0))*#REF!),INDEX(#REF!,MATCH(E27,#REF!,0),MATCH(D27,#REF!,0)))) -> 0 | L27: 0 | N27: =IF(M27="x",G27*SUM(H27:K27)+Grunddaten!$B$40,G27*SUM(H27:K27)) -> 0
A28: 21 | E28: ag | G28: =IF(D28="",0,IF(F28="x",(INDEX(#REF!,MATCH(E28,#REF!,0),MATCH(D28,#REF!,0))*#REF!),INDEX(#REF!,MATCH(E28,#REF!,0),MATCH(D28,#REF!,0)))) -> 0 | L28: 0 | N28: =IF(M28="x",G28*SUM(H28:K28)+Grunddaten!$B$40,G28*SUM(H28:K28)) -> 0
A29: 22 | E29: ag | G29: =IF(D29="",0,IF(F29="x",(INDEX(#REF!,MATCH(E29,#REF!,0),MATCH(D29,#REF!,0))*#REF!),INDEX(#REF!,MATCH(E29,#REF!,0),MATCH(D29,#REF!,0)))) -> 0 | L29: 0 | N29: =IF(M29="x",G29*SUM(H29:K29)+Grunddaten!$B$40,G29*SUM(H29:K29)) -> 0
A30: 23 | E30: ag | G30: =IF(D30="",0,IF(F30="x",(INDEX(#REF!,MATCH(E30,#REF!,0),MATCH(D30,#REF!,0))*#REF!),INDEX(#REF!,MATCH(E30,#REF!,0),MATCH(D30,#REF!,0)))) -> 0 | L30: 0 | N30: =IF(M30="x",G30*SUM(H30:K30)+Grunddaten!$B$40,G30*SUM(H30:K30)) -> 0
A31: 24 | E31: ag | G31: =IF(D31="",0,IF(F31="x",(INDEX(#REF!,MATCH(E31,#REF!,0),MATCH(D31,#REF!,0))*#REF!),INDEX(#REF!,MATCH(E31,#REF!,0),MATCH(D31,#REF!,0)))) -> 0 | L31: 0 | N31: =IF(M31="x",G31*SUM(H31:K31)+Grunddaten!$B$40,G31*SUM(H31:K31)) -> 0
A32: 25 | E32: ag | G32: =IF(D32="",0,IF(F32="x",(INDEX(#REF!,MATCH(E32,#REF!,0),MATCH(D32,#REF!,0))*#REF!),INDEX(#REF!,MATCH(E32,#REF!,0),MATCH(D32,#REF!,0)))) -> 0 | L32: 0 | N32: =IF(M32="x",G32*SUM(H32:K32)+Grunddaten!$B$40,G32*SUM(H32:K32)) -> 0
A33: 26 | E33: ag | G33: =IF(D33="",0,IF(F33="x",(INDEX(#REF!,MATCH(E33,#REF!,0),MATCH(D33,#REF!,0))*#REF!),INDEX(#REF!,MATCH(E33,#REF!,0),MATCH(D33,#REF!,0)))) -> 0 | L33: 0 | N33: =IF(M33="x",G33*SUM(H33:K33)+Grunddaten!$B$40,G33*SUM(H33:K33)) -> 0
A34: 27 | E34: ag | G34: =IF(D34="",0,IF(F34="x",(INDEX(#REF!,MATCH(E34,#REF!,0),MATCH(D34,#REF!,0))*#REF!),INDEX(#REF!,MATCH(E34,#REF!,0),MATCH(D34,#REF!,0)))) -> 0 | L34: 0 | N34: =IF(M34="x",G34*SUM(H34:K34)+Grunddaten!$B$40,G34*SUM(H34:K34)) -> 0
A35: 28 | E35: ag | G35: =IF(D35="",0,IF(F35="x",(INDEX(#REF!,MATCH(E35,#REF!,0),MATCH(D35,#REF!,0))*#REF!),INDEX(#REF!,MATCH(E35,#REF!,0),MATCH(D35,#REF!,0)))) -> 0 | L35: 0 | N35: =IF(M35="x",G35*SUM(H35:K35)+Grunddaten!$B$40,G35*SUM(H35:K35)) -> 0
C37: Namen löschen
C42: ABC
